{"text_format":"1","workbook":"xlsx","n_sheets":13,"sheets":["AER only","Instructions","Contents","Business & other details","3.1 Revenue","3.2 Operating expenditure","3.2.3 Provisions","3.3 Assets (RAB)","3.4 Operational data","3.5 Physical assets","3.6 Quality of service","3.7 Operating environment","NSP amendments"],"not_rendered":{"charts":0,"images":5,"macros":1,"external_links":1,"defined_names":522,"comments":1,"pivot_tables":0},"unopened":[],"bounds":{"document_bytes":16777216,"sheet_cells":100000,"rows_first":2000,"rows_last":500,"rows_between":2000,"halvings":0,"cell_chars":16384,"cell_head_chars":4096},"cells_cut":0,"cells_raw":0,"read":"whole","date_system":"1900"}

{"sheet":"AER only","index":0,"n_rows":98,"n_cols":40,"rows_kept":98,"cut":false,"hidden":true,"merged":[[81,4,81,11],[0,1,0,11],[3,28,3,38],[4,28,4,31],[4,34,4,38],[44,22,44,26],[45,1,45,5],[45,14,45,21],[45,22,45,26],[46,2,46,3],[46,34,48,34],[49,34,53,34],[57,34,58,34],[63,22,63,25]]}
[null,"Data in these columns used for data validation and database purposes."]
[null,"Date last modified:","2016-08-08","added new business names, improved column heading formatting"]
[]
[null,null,null,null,null,null,null,null,null,null,null,null,null,null,null,null,null,null,null,null,null,null,null,null,null,null,null,null,"FOR ELECTRICITY BUSINESSES ONLY"]
[null,null,null,null,null,null,null,null,null,null,null,null,null,null,null,null,null,null,null,null,null,null,null,null,null,null,null,null,"Feeder Types",null,null,null,"TasNetworks (D)","MAIFI flag","Feeder Names"]
[null,null,null,null,null,null,null,null,null,null,null,null,null,null,null,null,null,null,null,null,null,null,null,null,null,null,null,null,"CBD","Urban","Short rural","long rural","EXTRA"]
[null,"dms_TradingName_List","dms_TradingNameFull_List","dms_ABN_List","dms_JurisdictionList","dms_Sector_List","dms_Segment_List","dms_FormControl_List","dms_RPT_List","dms_RPTMonth_List","dms_CRCPlength_List","dms_FRCPlength_List","dms_663_List","dms_DeterminationRef_List","dms_Addr1_List","dms_Addr2_List","dms_Suburb_List","dms_State_List","dms_PostCode_List","dms_PAddr1_List","dms_PAddr2_List","dms_PSuburb_List","dms_PState_List","dms_PPostCode_List","dms_ContactName1_List","dms_ContactPh1_List","dms_ContactEmail_List",null,"dms_CBD_flag","dms_Urban_flag","dms_ShortRural_flag","dms_LongRural_flag","dms_FeederType_5_flag","dms_MAIFI_flag_List","dms_FeederName_1","dms_FeederName_2","dms_FeederName_3","dms_FeederName_4","dms_FeederName_5"]
[null,"ActewAGL Distribution","ActewAGL Distribution",76670568688,"ACT","Electricity","Distribution","Revenue cap","Financial","June",5,5,5,"2014-19 Distribution Determination","40 Bunda Street",null,"CANBERRA","ACT","2600","GPO BOX 366",null,"CANBERRA","ACT",2601,"Robert Walker","02 6248 3847","robert.walker@actewagle.com.au",null,"NO","YES","YES","NO","NO",null,"CBD","Urban","Short rural","Long rural",null,"ActewAGL Distribution"]
[null,"ActewAGL Distribution (Tx Assets)","ActewAGL Distribution (Tx Assets)",76670568688,"ACT","Electricity","Distribution","Revenue cap","Financial","June",5,5,5,"distribution determination","40 Bunda Street",null,"CANBERRA","ACT","2600","GPO BOX 366",null,"CANBERRA","ACT",2601,"Robert Walker","02 6248 3847","robert.walker@actewagle.com.au",null,null,null,null,null,null,null,"CBD","Urban","Short rural","Long rural",null,"ActewAGL Distribution (Tx Assets)"]
[null,"ActewAGL Gas","ActewAGL Gas",76670568688,"ACT","Gas","Distribution","Weighted average price cap","Financial","June",5,5,"x",null,"40 Bunda Street",null,"CANBERRA","ACT","2600","GPO BOX 366",null,"CANBERRA","ACT",2601,"Philip Deamer","02 6248 3438","GasAAReview@actewagl.com.au",null,null,null,null,null,null,null,null,null,null,null,null,"ActewAGL Gas"]
[null,"AGN (SA)","AGN (SA)",78551685,"SA","Gas","Distribution","Revenue cap","Financial","June",5,5,5,"distribution determination",null,null,null,"SA",null,null,null,null,null,null,null,null,null,null,null,null,null,null,null,null,"CBD","Urban","Short rural","Long rural",null,"AGN (SA)"]
[null,"AGN (Victoria)","Australian Gas Networks Limited",19078551685,"Vic","Gas","Distribution","Weighted average price cap","Calendar","December",5,5,"x",null,"Level 10","81 Flinders Street","ADELAIDE","SA","5000",null,null,null,null,null,null,"08 8227 1500",null,null,null,null,null,null,null,null,null,null,null,null,null,"AGN (Victoria)"]
[null,"Amadeus","APT Pipelines (NT) Pty Ltd",39009737393,"NT","Gas","Transmission","Weighted average price cap","Financial","June",5,5,"x","n/a","Level 19, HSBC Building","580 George Street","SYDNEY","NSW","2000","Level 19, HSBC Building","580 George Street","SYDNEY","NSW","2000","Alexandra Curran","02 9275 0020","alexandra.curran@apa.com.au",null,null,null,null,null,null,null,null,null,null,null,null,"Amadeus"]
[null,"APA GasNet","APA VTS Australia Limited",79096457868,"Vic","Gas","Transmission","Weighted average price cap","Calendar","December",5,5,"x",null,"Level 19, HSBC Building","580 George Street","SYDNEY","NSW","2000","PO Box R41",null,"ROYAL EXCHANGE","NSW","1225",null,"02 9693 0000",null,null,null,null,null,null,null,null,null,null,null,null,null,"APA GasNet"]
[null,"Ausgrid","Ausgrid",67505337385,"NSW","Electricity","Distribution","Revenue cap","Financial","June",5,5,5,"2014-19 Distribution Determination","570 George St",null,"SYDNEY","NSW",2000,null,null,null,null,null,"John Thomson","(02) 9269 2312","john.thomson@ausgrid.com.au",null,"YES","YES","YES","YES","NO",null,"CBD","Urban","Short rural","Long rural",null,"Ausgrid"]
[null,"Ausgrid (Tx Assets)","Ausgrid (Tx Assets)",67505337385,"NSW","Electricity","Distribution","Revenue cap","Financial","June",5,5,5,"distribution determination",null,null,null,"NSW",null,null,null,null,null,null,null,null,null,null,null,null,null,null,null,null,"CBD","Urban","Short rural","Long rural",null,"Ausgrid (Tx Assets)"]
[null,"AusNet (D)","AusNet Services (D)",91064651118,"Vic","Electricity","Distribution","Revenue cap","Calendar","December",5,5,2,"2016-20 Distribution Determination","Level 32","2 Southbank Boulevard","SOUTHBANK","Vic","3006","Locked Bag 14051",null,"MELBOURNE CITY MAIL CENTRE","VIC",8001,"Hannah Williams","03 9683 4088","hwilliams@powercor.com.au",null,null,"YES","YES","YES","NO",null,"CBD","Urban","Short rural","Long rural",null,"AusNet (D)"]
[null,"AusNet (Gas)","AusNet Gas Services",null,"Vic","Gas","Distribution","Weighted average price cap","Calendar","December",5,5,"X",null,null,null,null,null,null,null,null,null,null,null,null,null,null,null,null,null,null,null,null,null,null,null,null,null,null,"AusNet (Gas)"]
[null,"AusNet (T)","AusNet (T)",78079798173,"Vic","Electricity","Transmission","Revenue cap","Financial","March",5,5,2,"transmission determination","Level 32","2 Southbank Boulevard","SOUTHBANK","Vic","3006",null,null,null,null,null,"Tom Hallam","03 9695 6617","Thomas.hallam@SP-Ausnet.com.au",null,null,null,null,null,null,null,"CBD","Urban","Short rural","Long rural",null,"AusNet (T)"]
[null,"Australian Distribution Co.","Australian Distribution Co.",11222333444,"-","Electricity","Distribution","Revenue cap","Financial","June",5,5,2,"distribution determination","123 Straight Street",null,"SYDNEY","NSW","2000","PO Box 123",null,"SYDNEY","NSW",2000,"Bob Smith","02 1234 5678","bob@auselec.net.au",null,null,null,null,null,null,null,"CBD","Urban","Short rural","Long rural",null,"Australian Distribution Co."]
[null,"Australian Transmission Co.","Australian Transmission Co.",11222333444,"-","Electricity","Transmission","Revenue cap","Financial","June",5,5,5,"transmission determination","123 Straight Street",null,"SYDNEY","NSW","2000","PO Box 123",null,"SYDNEY","NSW",2000,"Bob Smith","02 1234 5678","bob@auselec.net.au",null,null,null,null,null,null,null,"CBD","Urban","Short rural","Long rural",null,"Australian Transmission Co."]
[null,"CitiPower","CitiPower",76064651056,"Vic","Electricity","Distribution","Revenue cap","Calendar","December",5,5,2,"2016-20 Distribution Determination","40 Market Street",null,"MELBOURNE","Vic","3000","Locked Bag 14090",null,"MELBOURNE","VIC",8001,"Hannah Williams","03 9683 4088","hwilliams@powercor.com.au",null,"YES","YES","NO","NO","NO",null,"CBD","Urban","Short rural","Long rural",null,"CitiPower"]
[null,"Directlink","Directlink",16779340889,"Qld","Electricity","Transmission","Revenue cap","Financial","June",9,5,5,"transmission determination",null,null,null,"NSW",null,null,null,null,null,null,null,null,null,null,null,null,null,null,null,null,"CBD","Urban","Short rural","Long rural",null,"Directlink"]
[null,"ElectraNet","ElectraNet",41094482416,"SA","Electricity","Transmission","Revenue cap","Financial","June",5,5,5,"transmission determination","52-55 East Terrace","Rymill Park","ADELAIDE","SA","5000","PO Box 7096","Hutt Street Post Office","ADELAIDE","SA",null,"Bill Jackson","08 8404 7969","jackson.bill@electranet.com.au",null,null,null,null,null,null,null,"CBD","Urban","Short rural","Long rural",null,"ElectraNet"]
[null,"Endeavour Energy","Endeavour Energy",59253130878,"NSW","Electricity","Distribution","Revenue cap","Financial","June",5,5,5,"2014-19 Distribution Determination","51 Huntingwood Drive",null,"HUNTINGWOOD","NSW","2148","PO Box 811",null,"SEVEN HILLS","NSW",null,"Jon Hocking","02 9853 4386 / 0407 348 156","Jon.Hocking@Endeavourenergy.com.au",null,"NO","YES","YES","YES","NO",null,"CBD","Urban","Short rural","Long rural",null,"Endeavour Energy"]
[null,"Energex","Energex",40078849055,"Qld","Electricity","Distribution","Revenue cap","Financial","June",5,5,5,"2015-20 Distribution Determination","26 Reddacliff Street",null,"NEWSTEAD","Qld","4006","26 Reddacliff Street",null,"NEWSTEAD","QLD","4006","Nicola Roscoe","07 3664 5891","nicolaroscoe@energex.com.au",null,"YES","YES","YES","NO","NO",null,"CBD","Urban","Short rural","Long rural",null,"Energex"]
[null,"Ergon Energy","Ergon Energy",50087646062,"Qld","Electricity","Distribution","Revenue cap","Financial","June",5,5,5,"2015-20 Distribution Determination","22 Walker Street",null,"TOWNSVILLE","Qld","4810","Po Box 264",null,"FORTITUDE VALLEY","QLD",4006,"Jenny Doyle, Group Manager Regulatory Affairs","(07) 3851 6416","jenny.doyle@ergon.com.au",null,"NO","YES","YES","YES","NO",null,"CBD","Urban","Short rural","Long rural",null,"Ergon Energy"]
[null,"Essential Energy","Essential Energy",37428185226,"NSW","Electricity","Distribution","Revenue cap","Financial","June",5,5,5,"2014-19 Distribution Determination","8 Buller Street",null,"PORT MACQUARIE","NSW",null,"PO Box 5730",null,"PORT MACQUARIE","NSW",null,"Catherine Waddell","02 6338 3553","catherine.waddell@essentialenergy.com.au",null,null,null,"YES","YES","NO",null,"CBD","Urban","Short rural","Long rural",null,"Essential Energy"]
[null,"Jemena Electricity","Jemena Electricity",82064651083,"Vic","Electricity","Distribution","Revenue cap","Calendar","December",5,5,2,"2016-20 Distribution Determination","Level 16","567 Collins Street","MELBOURNE","VIC","3000","PO Box 16182",null,"MELBOURNE","VIC",8001,"Robert McMillan","03 9173 7000","robert.mcmillan@jemena.com.au",null,null,null,"YES","NO","NO",null,"CBD","Urban","Short rural","Long rural",null,"Jemena Electricity"]
[null,"JGN","Jemena Gas Networks",null,"NSW","Gas","Distribution","Weighted average price cap","Financial","June",5,5,null,null,null,null,null,null,null,null,null,null,null,null,null,null,null,null,null,null,null,null,null,null,null,null,null,null,null,"JGN"]
[null,"Multinet Gas","Multinet Gas (DB No.1) Pty Ltd (ACN 086 026 986), Multinet Gas (DB No.2) Pty Ltd (ACN 086 230 122)",86026986,"Vic","Gas","Distribution","Weighted average price cap","Calendar","December",5,5,"x",null,null,null,null,null,null,null,null,null,null,null,null,null,null,null,null,null,null,null,null,null,null,null,null,null,null,"Multinet Gas"]
[null,"Murraylink","Murraylink",79181207909,"SA","Electricity","Transmission","Revenue cap","Financial","June",5,5,5,"transmission determination",null,null,null,null,null,null,null,null,null,null,null,null,null,null,null,null,null,null,null,null,"CBD","Urban","Short rural","Long rural",null,"Murraylink"]
[null,"Powercor Australia","Powercor Australia",89064651109,"Vic","Electricity","Distribution","Revenue cap","Calendar","December",5,5,2,"2016-20 Distribution Determination","40 Market Street",null,"MELBOURNE","Vic","3000","Locked bag 14090",null,"MELBOURNE","VIC",8001,"Hannah Williams","03 9683 4088","hwilliams@powercor.com.au",null,null,null,"YES","YES","NO",null,"CBD","Urban","Short rural","Long rural",null,"Powercor Australia"]
[null,"Powerlink","Queensland Electricity Transmission Corporation Limited trading as Powerlink Queensland",82078849233,"Qld","Electricity","Transmission","Revenue cap","Financial","June",5,5,5,"transmission determination","33 Harold St",null,"VIRGINIA","Qld","4014","PO Box 1193",null,"VIRGINIA","QLD",4014,"Jennifer Harris","07 3860 2667","jharris@powerlink.com.au",null,null,null,null,null,null,null,"CBD","Urban","Short rural","Long rural",null,"Powerlink"]
[null,"Roma to Brisbane Pipeline","APT Petroleum Pipelines Limited t/a Roma to Brisbane Pipeline","009 737 393","Qld","Gas","Transmission","Revenue cap","Financial","June",5,5,"x","n/a",null,null,null,null,null,null,null,null,null,null,null,null,null,null,null,null,null,null,null,null,"CBD","Urban","Short rural","Long rural",null,"Roma to Brisbane Pipeline"]
[null,"SA Power Networks","SA Power Networks",13332330749,"SA","Electricity","Distribution","Revenue cap","Financial","June",5,5,5,"2015-20 Distribution Determination","1 Anzac Highway",null,"KESWICK","SA","5035","GPO Box 77",null,"ADELAIDE","SA",null,"Damien O'Connor","08 8404 5066","damien.oconnor@sapowernetworks.com.au",null,null,null,"YES","YES","NO",null,"CBD","Urban","Short rural","Long rural",null,"SA Power Networks"]
[null,"TasNetworks (D)","TasNetworks (D)",24167357299,"Tas","Electricity","Distribution","Revenue cap","Financial","June",5,5,5,"distribution determination","21 Kirksway Place",null,"HOBART","Tas","7000","GPO Box 191",null,"HOBART","Tas",null,"Leigh Mayne","03 6270 3691","rrp2012@auroraenergy.com.au",null,null,null,"YES","YES","YES",null,"Critical Infrastructure","High density commercial","Urban","High density rural","Low density rural","TasNetworks (D)"]
[null,"TasNetworks (T)","TasNetworks (T)",24167357299,"Tas","Electricity","Transmission","Revenue cap","Financial","March",5,5,5,"transmission determination","1-7 Maria Street",null,"LENAH VALLEY","Tas","7008","PO Box 606",null,"MOONAH","Tas",null,"Heath Dillon","03 6274 3664","heath.dillon@transend.com.au",null,null,null,null,null,null,null,"CBD","Urban","Short rural","Long rural",null,"TasNetworks (T)"]
[null,"TransGrid","TransGrid",19622755774,"NSW","Electricity","Transmission","Revenue cap","Financial","June",5,4,5,"transmission determination","180 Thomas Street",null,"HAYMARKET","NSW","2000","PO Box A1000",null,"SYDNEY SOUTH","NSW",null,"Andrew Kingsmill","02 9284 3149","andrew.kingsmill@transgrid.com.au",null,null,null,null,null,null,null,"CBD","Urban","Short rural","Long rural",null,"TransGrid"]
[null,"United Energy","United Energy",70064651029,"Vic","Electricity","Distribution","Revenue cap","Calendar","December",5,5,2,"2016-20 Distribution Determination","Level 3","6 Nexus Court","MULGRAVE","Vic","3149","PO Box 449",null,"MOUNT WAVERLEY","VIC",3170,"Mathew Abraham","03 8846 9758","mathew.abraham@ue.com.au",null,null,null,"YES","NO","NO",null,"CBD","Urban","Short rural","Long rural",null,"United Energy"]
[null,"Western Power (D)","Western Power (D)",18540492861,"WA","Electricity","Distribution","Revenue cap","Financial","June",12,4,"x","distribution determination","363 Wellington Street",null,"PERTH","WA","6000","GPO Box L921",null,"PERTH","WA",6842,"Judy Hunter","08 9326 6239","judy.hunter@westernpower.com.au",null,null,null,"YES","YES","NO","NO","CBD","Urban","Short rural","Long rural",null,"Western Power (D)"]
[null,"Western Power (T)","Western Power (T)",18540492861,"WA","Electricity","Transmission","Revenue cap","Financial","June",12,4,"x","transmission determination","363 Wellington Street",null,"PERTH","WA","6000","GPO Box L921",null,"PERTH","WA",6842,"Judy Hunter","08 9326 6239","judy.hunter@westernpower.com.au",null,null,null,"YES","YES","NO",null,"CBD","Urban","Short rural","Long rural",null,"Western Power (T)"]
[]
[]
[null,null,null,null,null,null,null,null,null,null,null,null,null,null,null,null,null,null,null,null,null,null,"For EB & Reset RINs only"]
[null,"The Reg Year Ending (dms_RYE) must be set to the last year of the regulatory period. For forecast data is is usually (FRCP_y5) for actual it is a single year (CRY). For historical actual data the RYE will need to be set manually in the business details sheet by setting the dms_Multiyear_flag to 1 and putting the correct value in 'dms_Specified_FinalYear. See cells C67:C68",null,null,null,null,{"$f":"IF(dms_RPT=\"financial\",VALUE(LEFT(CRCP_y1,4)-1)&\"-\"&TEXT(VALUE(RIGHT(CRCP_y1,2)-1),\"00\"),VALUE(LEFT(CRCP_y1,4)-1))","v":"2009-10"},null,null,null,null,null,null,"Drop down selector box for CA & Reset RINs.","For CA & Reset RINs only",null,null,null,null,null,null,null,"for DNSP only",null,null,null,null,null,null,null,null,null,null,null,"Reason for interruption","dms_Reason_Interruption_Detailed","dms_Reason_Interruption"]
[null,"dms_Model_List ","DELETE NR 'CRY' IF NOT AN ANNUAL RIN (EB, CA , ARR)",null,"dms_RYE_Formula_Result",null,null,null,null,null,null,null,null,"dms_0203_ProjectType","dms_020303_01_UOM","dms_020501_01_UOM","dms_020501_02_UOM","dms_020501_03_UOM","dms_020501_04_UOM","dms_020603_01_UOM","dms_040102_01_UOM","dms_040102_04_UOM","dms_030601_01_UOM","dms_030601_02_UOM","dms_030701_01_UOM","dms_030702_01_UOM","dms_030703_01_UOM",null,null,null,null,null,null,null,"Animal","Animal impact","Animal"]
[null,"ARR","ANNUAL REPORTING STATEMENT",null,{"$f":"LEFT(dms_SingleYear_FinalYear_Result,2)&RIGHT(dms_SingleYear_FinalYear_Result,2)","v":"2016"},"=LEFT(dms_SingleYear_FinalYear_Result,2)&RIGHT(dms_SingleYear_FinalYear_Result,2)",null,"Formula errors are OK",null,null,null,null,null,"New line on new route - single circuit","Circuit line length in km","0's","0's","0's","0's","0's","0's","days","minutes/customer","minutes/customer","Customer / km","%","km",null,null,null,null,null,null,null,null,"Animal nesting/burrowing, etc and other","Asset failure"]
[null,"CA","CATEGORY ANALYSIS",null,{"$f":"LEFT(dms_SingleYear_FinalYear_Result,2)&RIGHT(dms_SingleYear_FinalYear_Result,2)","v":"2016"},"=LEFT(dms_SingleYear_FinalYear_Result,2)&RIGHT(dms_SingleYear_FinalYear_Result,2)",null,"Formula errors are OK",null,null,null,null,null,"New line on new route - dual circuit","Circuit line length in km","0's","0's","0's","0's","0's","0's","0's","minutes/customer","minutes/customer","MWh/customer","Number of spans",null,null,null,null,null,null,null,null,null,"Other","Other"]
[null,"CPI","CPI",null,null,null,null,null,null,null,null,null,null,"New line on new route - other","Circuit line length in km","MVA added","MVA added","MVA added","MVA added","0's","0's","$0s","interruptions/customer","interruptions/customer","kVA / customer","Number of spans",null,null,null,null,null,null,null,null,"Asset failure","LV","Overloads"]
[null,"EB","ECONOMIC BENCHMARKING",null,{"$f":"LEFT(dms_SingleYear_FinalYear_Result,2)&RIGHT(dms_SingleYear_FinalYear_Result,2)","v":"2016"},"=LEFT(dms_SingleYear_FinalYear_Result,2)&RIGHT(dms_SingleYear_FinalYear_Result,2)",null,"Formula errors are OK",null,null,null,null,null,"Line rebuild over existing route - single circuit","Circuit line length in km","0's","0's","0's","0's","0's","$0s","0's","interruptions/customer","interruptions/customer",null,"Number of spans",null,null,null,null,null,null,null,null,null,"Distribution substation","Planned"]
[null,"PTRM","POST TAX REVENUE MODEL",null,{"$f":"LEFT(dms_MultiYear_FinalYear_Result,2)&RIGHT(dms_MultiYear_FinalYear_Result,2)","v":"2020"},"=LEFT(dms_MultiYear_FinalYear_Result,2)&RIGHT(dms_MultiYear_FinalYear_Result,2)",null,null,null,null,null,null,null,"Line rebuild over existing route - dual circuit","Number","total spend $0s","total spend $0s","total spend $0s","total spend $0s","(per cent)",null,null,null,null,null,"Number of spans",null,null,null,null,null,null,null,null,null,"HV","Network business"]
[null,"Reset","REGULATORY REPORTING STATEMENT",null,{"$f":"LEFT(dms_MultiYear_FinalYear_Result,2)&RIGHT(dms_MultiYear_FinalYear_Result,2)","v":"2020"},"=LEFT(dms_MultiYear_FinalYear_Result,2)&RIGHT(dms_MultiYear_FinalYear_Result,2)",null,"Formula errors are OK",null,null,null,null,null,"Reconductor - Single circuit","Number","net circuit km added","net circuit km added","net circuit km added","net circuit km added",null,null,null,null,null,null,"Years",null,null,null,null,null,null,null,null,null,"Zone substation","Third party"]
[null,"RFM","ROLL FORWARD MODEL",null,{"$f":"LEFT(dms_CRCP_FinalYear_Result,2)&RIGHT(dms_CRCP_FinalYear_Result,2)","v":"2016"},"=LEFT(dms_CRCP_FinalYear_Result,2)&RIGHT(dms_CRCP_FinalYear_Result,2)",null,null,null,null,null,null,null,"Reconductor - Dual circuit","Number","total spend $0s","total spend $0s","total spend $0s","total spend $0s",null,null,null,null,null,null,"Years",null,null,null,null,null,null,null,null,null,"Subtransmission","Unknown"]
[null,"WACC","WEIGHTED AVERAGE COST OF CAPITAL",null,{"$f":"LEFT(dms_MultiYear_FinalYear_Result,2)&RIGHT(dms_MultiYear_FinalYear_Result,2)","v":"2020"},"=LEFT(dms_MultiYear_FinalYear_Result,2)&RIGHT(dms_MultiYear_FinalYear_Result,2)",null,null,null,null,null,null,null,"Other",null,"net circuit km added","net circuit km added","net circuit km added","net circuit km added",null,null,null,null,null,null,"Trees",null,null,null,null,null,null,null,null,"Other","insert description of 'other'","Vegetation"]
[null,null,null,null,null,null,null,null,null,null,null,null,null,null,null,"total spend $0s","total spend $0s","total spend $0s","total spend $0s",null,null,null,null,null,null,"Trees",null,null,null,null,null,null,null,null,"Overloads","Network error","Weather"]
[null,null,null,null,null,null,null,null,null,null,null,null,null,null,null,"0's",null,"$0s",null,null,null,null,null,null,null,"Defects",null,null,null,null,null,null,null,null,"Planned","Switching and protection error","2 - STPIS Exclusion (3.3)(a)"]
[null,null,null,null,null,null,null,null,null,null,null,null,null,null,null,"0's",null,null,null,null,null,null,null,null,null,"Defects",null,null,null,null,null,null,null,null,"Network business","Fire","3 - STPIS Exclusion (3.3)(a)"]
[null,null,null,null,null,null,null,null,null,null,null,null,null,null,null,"0's",null,null,null,null,null,null,null,null,null,"Spans",null,null,null,null,null,null,null,null,null,"Other","4 - STPIS Exclusion (3.3)(a)"]
[null,null,null,null,null,null,null,null,null,null,null,null,null,null,null,"$0s",null,null,null,null,null,null,null,null,null,"km",null,null,null,null,null,null,null,null,"Third party","Dig-in","5 - STPIS Exclusion (3.3)(a)"]
[null,null,null,null,null,null,null,null,null,null,null,null,null,null,null,null,null,null,null,null,null,null,null,null,null,"Spans",null,null,null,"",null,null,null,null,null,"Unauthorised access","6 - STPIS Exclusion (3.3)(a)"]
[null,null,null,null,null,null,null,null,null,null,null,null,null,null,null,null,null,null,null,null,null,null,null,null,null,null,null,null,null,null,null,null,null,null,null,"Vehicle impact","7 - STPIS Exclusion (3.3)(a)"]
[null,null,null,null,null,null,null,null,null,null,null,null,null,null,null,null,null,null,null,null,null,null,null,null,null,null,null,null,null,null,null,null,null,null,null,"Unknown"]
[null,"For all files either AER or business needs to be able to specify the type of submission","For PTRM & RFM templates we must provide a choice in case they change their form of control - otherwise it is drawn from the business specific lookup table above.",null,"These are indeces and lookup values for various dates. All step from the value placed in FRCP_y1 on the business and other details worksheet",null,null,null,null,null,null,null,null,null,null,null,null,null,null,null,null,null,"for TNSP only",null,null,null,null,null,null,null,null,null,null,null,null,"Blow-in/Fall-in - NSP responsibility"]
[null,"dms_SourceList","dms_FormControl_Choices",null,"dms_FRCPlength_Num_List","dms_FinalYear_List","dms_CRCPlength_Num_List","dms_CFinalYear_List","dms_FRCP_years",null,"dms_CRCP_years",null,"dms_CRCP_index",null,null,null,null,null,null,null,null,null,"dms_030601_01_UOM",null,"dms_030701_01_UOM","dms_030702_01_UOM",null,null,null,null,null,null,null,null,"Unknown","Grow-in - NSP responsibility"]
[null,"After appeal","Revenue cap",null,1,"dms_FRCP_y1",1,"CRCP_y1",{"$f":"FRCP_y1","v":"2015-16"},"dms_FRCP_y1",{"$f":"IF(dms_RPT=\"financial\",VALUE(LEFT(dms_FRCP_y1,4)-1)&\"-\"&TEXT(VALUE(MID(dms_FRCP_y1,3,2)),\"00\"),VALUE(LEFT(dms_FRCP_y1,4)-1))","v":"2014-15"},"dms_CRCP_yZ",1,null,null,null,null,null,null,null,null,null,"%",null,"Number of spans","km",null,null,null,null,null,null,null,null,"Vegetation","Blow-in/Fall-in - Other responsible party"]
[null,"Draft decision","Revenue yield",null,2,"dms_FRCP_y2",2,"CRCP_y2",{"$f":"IF(dms_RPT=\"financial\",VALUE(LEFT(dms_FRCP_y1,4)+1)&\"-\"&TEXT(VALUE(RIGHT(dms_FRCP_y1,2)+1),\"00\"),VALUE(LEFT(dms_FRCP_y1,4)+1))","v":"2016-17"},"dms_FRCP_y2",{"$f":"IF(dms_RPT=\"financial\",VALUE(LEFT(dms_CRCP_yZ,4)-1)&\"-\"&TEXT(VALUE(MID(dms_CRCP_yZ,3,2)),\"00\"),VALUE(LEFT(dms_CRCP_yZ,4)-1))","v":"2013-14"},"dms_CRCP_yY",2,null,null,null,null,null,null,null,null,null,"number",null,"Years","%",null,null,null,null,null,null,null,null,null,"Grow-in - Other responsible party"]
[null,"Final decision","Weighted average price cap",null,3,"dms_FRCP_y3",3,"CRCP_y3",{"$f":"IF(dms_RPT=\"financial\",VALUE(LEFT(dms_FRCP_y2,4)+1)&\"-\"&TEXT(VALUE(RIGHT(dms_FRCP_y2,2)+1),\"00\"),VALUE(LEFT(dms_FRCP_y2,4)+1))","v":"2017-18"},"dms_FRCP_y3",{"$f":"IF(dms_RPT=\"financial\",VALUE(LEFT(dms_CRCP_yY,4)-1)&\"-\"&TEXT(VALUE(MID(dms_CRCP_yY,3,2)),\"00\"),VALUE(LEFT(dms_CRCP_yY,4)-1))","v":"2012-13"},"dms_CRCP_yX",3,null,null,null,null,null,null,null,null,null,"number",null,"Trees","km"]
[null,"PTRM update 1",null,null,4,"dms_FRCP_y4",4,"CRCP_y4",{"$f":"IF(dms_RPT=\"financial\",VALUE(LEFT(dms_FRCP_y3,4)+1)&\"-\"&TEXT(VALUE(RIGHT(dms_FRCP_y3,2)+1),\"00\"),VALUE(LEFT(dms_FRCP_y3,4)+1))","v":"2018-19"},"dms_FRCP_y4",{"$f":"IF(dms_RPT=\"financial\",VALUE(LEFT(dms_CRCP_yX,4)-1)&\"-\"&TEXT(VALUE(MID(dms_CRCP_yX,3,2)),\"00\"),VALUE(LEFT(dms_CRCP_yX,4)-1))","v":"2011-12"},"dms_CRCP_yW",4,null,null,null,null,null,null,null,null,null,"%",null,"Defects","number"]
[null,"PTRM update 2",null,null,5,"dms_FRCP_y5",5,"CRCP_y5",{"$f":"IF(dms_RPT=\"financial\",VALUE(LEFT(dms_FRCP_y4,4)+1)&\"-\"&TEXT(VALUE(RIGHT(dms_FRCP_y4,2)+1),\"00\"),VALUE(LEFT(dms_FRCP_y4,4)+1))","v":"2019-20"},"dms_FRCP_y5",{"$f":"IF(dms_RPT=\"financial\",VALUE(LEFT(dms_CRCP_yW,4)-1)&\"-\"&TEXT(VALUE(MID(dms_CRCP_yW,3,2)),\"00\"),VALUE(LEFT(dms_CRCP_yW,4)-1))","v":"2010-11"},"dms_CRCP_yV",5,null,null,null,null,null,null,null,null,null,"number",null,"Number of spans",null,null,null,null,null,null,null,null,null,"Weather"]
[null,"PTRM update 3",null,null,6,"dms_FRCP_y6",6,"CRCP_y6",{"$f":"IF(dms_RPT=\"financial\",VALUE(LEFT(dms_FRCP_y5,4)+1)&\"-\"&TEXT(VALUE(RIGHT(dms_FRCP_y5,2)+1),\"00\"),VALUE(LEFT(dms_FRCP_y5,4)+1))","v":"2020-21"},"dms_FRCP_y6",{"$f":"IF(dms_RPT=\"financial\",VALUE(LEFT(dms_CRCP_yV,4)-1)&\"-\"&TEXT(VALUE(MID(dms_CRCP_yV,3,2)),\"00\"),VALUE(LEFT(dms_CRCP_yV,4)-1))","v":"2009-10"},"dms_CRCP_yU",6,null,null,null,null,null,null,null,null,null,"number",null,"km",null,null,null,null,null,null,null,null,null,"2 - STPIS Exclusion (3.3)(a)"]
[null,"PTRM update 4",null,null,7,"dms_FRCP_y7",7,"CRCP_y7",{"$f":"IF(dms_RPT=\"financial\",VALUE(LEFT(dms_FRCP_y6,4)+1)&\"-\"&TEXT(VALUE(RIGHT(dms_FRCP_y6,2)+1),\"00\"),VALUE(LEFT(dms_FRCP_y6,4)+1))","v":"2021-22"},"dms_FRCP_y7",{"$f":"IF(dms_RPT=\"financial\",VALUE(LEFT(dms_CRCP_yU,4)-1)&\"-\"&TEXT(VALUE(MID(dms_CRCP_yU,3,2)),\"00\"),VALUE(LEFT(dms_CRCP_yU,4)-1))","v":"2008-09"},"dms_CRCP_yT",7,null,null,null,null,null,null,null,null,null,"%",null,"km",null,null,null,null,null,null,null,null,null,"3 - STPIS Exclusion (3.3)(a)"]
[null,"PTRM update 5",null,null,8,"dms_FRCP_y8",8,"CRCP_y8",{"$f":"IF(dms_RPT=\"financial\",VALUE(LEFT(dms_FRCP_y7,4)+1)&\"-\"&TEXT(VALUE(RIGHT(dms_FRCP_y7,2)+1),\"00\"),VALUE(LEFT(dms_FRCP_y7,4)+1))","v":"2022-23"},"dms_FRCP_y8",{"$f":"IF(dms_RPT=\"financial\",VALUE(LEFT(dms_CRCP_yT,4)-1)&\"-\"&TEXT(VALUE(MID(dms_CRCP_yT,3,2)),\"00\"),VALUE(LEFT(dms_CRCP_yT,4)-1))","v":"2007-08"},"dms_CRCP_yS",8,null,null,null,null,null,null,null,null,null,"number",null,"Number of spans",null,null,null,null,null,null,null,null,null,"4 - STPIS Exclusion (3.3)(a)"]
[null,"PTRM update 6",null,null,9,"dms_FRCP_y9",9,"CRCP_y9",{"$f":"IF(dms_RPT=\"financial\",VALUE(LEFT(dms_FRCP_y8,4)+1)&\"-\"&TEXT(VALUE(RIGHT(dms_FRCP_y8,2)+1),\"00\"),VALUE(LEFT(dms_FRCP_y8,4)+1))","v":"2023-24"},"dms_FRCP_y9",{"$f":"IF(dms_RPT=\"financial\",VALUE(LEFT(dms_CRCP_yS,4)-1)&\"-\"&TEXT(VALUE(MID(dms_CRCP_yS,3,2)),\"00\"),VALUE(LEFT(dms_CRCP_yS,4)-1))","v":"2006-07"},"dms_CRCP_yR",9,null,null,null,null,null,null,null,null,null,"number",null,null,null,null,null,null,null,null,null,null,null,"5 - STPIS Exclusion (3.3)(a)"]
[null,"PTRM update 7",null,null,10,"dms_FRCP_y10",10,"CRCP_y10",{"$f":"IF(dms_RPT=\"financial\",VALUE(LEFT(dms_FRCP_y9,4)+1)&\"-\"&TEXT(VALUE(RIGHT(dms_FRCP_y9,2)+1),\"00\"),VALUE(LEFT(dms_FRCP_y9,4)+1))","v":"2024-25"},"dms_FRCP_y10",{"$f":"IF(dms_RPT=\"financial\",VALUE(LEFT(dms_CRCP_yR,4)-1)&\"-\"&TEXT(VALUE(MID(dms_CRCP_yR,3,2)),\"00\"),VALUE(LEFT(dms_CRCP_yR,4)-1))","v":"2005-06"},"dms_CRCP_yQ",10,null,null,null,null,null,null,null,null,null,"%",null,null,null,null,null,null,null,null,null,null,null,"6 - STPIS Exclusion (3.3)(a)"]
[null,"Regulatory proposal",null,null,11,"dms_FRCP_y11",11,"CRCP_y11",{"$f":"IF(dms_RPT=\"financial\",VALUE(LEFT(dms_FRCP_y10,4)+1)&\"-\"&TEXT(VALUE(RIGHT(dms_FRCP_y10,2)+1),\"00\"),VALUE(LEFT(dms_FRCP_y10,4)+1))","v":"2025-26"},"dms_FRCP_y11",{"$f":"IF(dms_RPT=\"financial\",VALUE(LEFT(dms_CRCP_yQ,4)-1)&\"-\"&TEXT(VALUE(MID(dms_CRCP_yQ,3,2)),\"00\"),VALUE(LEFT(dms_CRCP_yQ,4)-1))","v":"2004-05"},"dms_CRCP_yP",11,null,null,null,null,null,null,null,null,null,"number",null,null,null,null,null,null,null,null,null,null,null,"7 - STPIS Exclusion (3.3)(a)"]
[null,"Reporting",null,null,12,"dms_FRCP_y12",12,"CRCP_y12",{"$f":"IF(dms_RPT=\"financial\",VALUE(LEFT(dms_FRCP_y11,4)+1)&\"-\"&TEXT(VALUE(RIGHT(dms_FRCP_y11,2)+1),\"00\"),VALUE(LEFT(dms_FRCP_y11,4)+1))","v":"2026-27"},"dms_FRCP_y12",{"$f":"IF(dms_RPT=\"financial\",VALUE(LEFT(dms_CRCP_yP,4)-1)&\"-\"&TEXT(VALUE(MID(dms_CRCP_yP,3,2)),\"00\"),VALUE(LEFT(dms_CRCP_yP,4)-1))","v":"2003-04"},"dms_CRCP_yO",12,null,null,null,null,null,null,null,null,null,"%"]
[null,"Revised regulatory proposal",null,null,13,"dms_FRCP_y13",13,"CRCP_y13",{"$f":"IF(dms_RPT=\"financial\",VALUE(LEFT(dms_FRCP_y12,4)+1)&\"-\"&TEXT(VALUE(RIGHT(dms_FRCP_y12,2)+1),\"00\"),VALUE(LEFT(dms_FRCP_y12,4)+1))","v":"2027-28"},"dms_FRCP_y13",{"$f":"IF(dms_RPT=\"financial\",VALUE(LEFT(dms_CRCP_yO,4)-1)&\"-\"&TEXT(VALUE(MID(dms_CRCP_yO,3,2)),\"00\"),VALUE(LEFT(dms_CRCP_yO,4)-1))","v":"2002-03"},"dms_CRCP_yN",13,null,null,null,null,null,null,null,null,null,"number"]
[null,null,null,null,14,"dms_FRCP_y14",14,"CRCP_y14",{"$f":"IF(dms_RPT=\"financial\",VALUE(LEFT(dms_FRCP_y13,4)+1)&\"-\"&TEXT(VALUE(RIGHT(dms_FRCP_y13,2)+1),\"00\"),VALUE(LEFT(dms_FRCP_y13,4)+1))","v":"2028-29"},"dms_FRCP_y14",{"$f":"IF(dms_RPT=\"financial\",VALUE(LEFT(dms_CRCP_yN,4)-1)&\"-\"&TEXT(VALUE(MID(dms_CRCP_yN,3,2)),\"00\"),VALUE(LEFT(dms_CRCP_yN,4)-1))","v":"2001-02"},"dms_CRCP_yM",14,null,null,null,null,null,null,null,null,null,"%"]
[null,null,null,null,15,"dms_FRCP_y15",15,"CRCP_y15",{"$f":"IF(dms_RPT=\"financial\",VALUE(LEFT(dms_FRCP_y14,4)+1)&\"-\"&TEXT(VALUE(RIGHT(dms_FRCP_y14,2)+1),\"00\"),VALUE(LEFT(dms_FRCP_y14,4)+1))","v":"2029-30"},"dms_FRCP_y15",{"$f":"IF(dms_RPT=\"financial\",VALUE(LEFT(dms_CRCP_yM,4)-1)&\"-\"&TEXT(VALUE(MID(dms_CRCP_yM,3,2)),\"00\"),VALUE(LEFT(dms_CRCP_yM,4)-1))","v":"2000-01"},"dms_CRCP_yL",15,null,null,null,null,null,null,null,null,null,"number"]
[]
[null,null,null,null,"These are drop down lists for businesses to select the correct FRCP_y1 on the business and other details worksheet.\nThis also populates the column headings in the worksheets"]
[null,"dms_DataQuality_List",null,null,"dms_RCP_fyear_list","dms_CRY_ListF","dms_CRY_ListC","dms_RCP_cyear_list","dms_FRCP_fyear_list","dms_FRCP_ListF","dms_FRCP_ListC","dms_FRCP_cyear_list"]
[null,"Actual",null,null,"dms_fy1","2006-07",2007,"dms_cy1","dms_frcp_fy1","2016-17","2017","dms_crcp_cy1"]
[null,"Estimate",null,null,"dms_fy2","2007-08","2008","dms_cy2","dms_frcp_fy2","2017-18","2018","dms_crcp_cy2"]
[null,"Consolidated",null,null,"dms_fy3","2008-09","2009","dms_cy3","dms_frcp_fy3","2018-19","2019","dms_crcp_cy3"]
[null,"Recast",null,null,"dms_fy4","2009-10","2010","dms_cy4","dms_frcp_fy4","2019-20","2020","dms_crcp_cy4"]
[null,"Public",null,null,"dms_fy5","2010-11","2011","dms_cy5","dms_frcp_fy5","2020-21","2021","dms_crcp_cy5"]
[null,null,null,null,"dms_fy6","2011-12","2012","dms_cy6","dms_frcp_fy6","2021-22","2022","dms_crcp_cy6"]
[null,null,null,null,"dms_fy7","2012-13","2013","dms_cy7","dms_frcp_fy7","2022-23","2023","dms_crcp_cy7"]
[null,null,null,null,"dms_fy8","2013-14","2014","dms_cy8","dms_frcp_fy8","2023-24","2024","dms_crcp_cy8"]
[null,null,null,null,"dms_fy9","2014-15","2015","dms_cy9","dms_frcp_fy9","2024-25","2025","dms_crcp_cy9"]
[null,null,null,null,"dms_fy10","2015-16","2016","dms_cy10","dms_frcp_fy10","2025-26","2026","dms_crcp_cy10"]
[null,null,null,null,"dms_fy11","2016-17","2017","dms_cy11","dms_frcp_fy11","2026-27","2027","dms_crcp_cy11"]
[null,null,null,null,"dms_fy12","2017-18","2018","dms_cy12","dms_frcp_fy12","2027-28","2028","dms_crcp_cy12"]
[null,null,null,null,"dms_fy13","2018-19",2019,"dms_cy13","dms_frcp_fy13","2028-29","2029","dms_crcp_cy13"]
[null,null,null,null,"dms_fy14","2019-20","2020","dms_cy14","dms_frcp_fy14","2029-30","2030","dms_crcp_cy14"]
[null,null,null,null,"dms_fy15","2020-21","2021","dms_cy15","dms_frcp_fy15","2030-31","2031","dms_crcp_cy15"]

{"sheet":"Instructions","index":1,"n_rows":27,"n_cols":4,"rows_kept":27,"cut":false,"hidden":false,"merged":[[7,2,7,3],[1,1,1,5],[2,1,2,5],[3,2,3,4],[4,2,4,4],[5,2,5,4],[24,2,24,4],[25,2,25,3],[26,2,26,4],[8,2,8,4],[10,2,10,4],[12,2,12,4],[20,2,20,4],[22,2,22,4]]}
[]
[null,{"$f":"CONCATENATE(dms_Segment,\" Network Service Provider\")","v":"Distribution Network Service Provider"}]
[null,"Annual Reporting RIN Template"]
[null,null,{"$f":"CONCATENATE(\"This template is to be used by \",dms_TradingName,\" to fulfil its reporting obligations to the AER.\")","v":"This template is to be used by TasNetworks (D) to fulfil its reporting obligations to the AER."}]
[null,null,"INSTRUCTIONS"]
[null,null,"Complete the Business & other details worksheet before entering data or values in any other worksheets. The Business & other details worksheet is linked to other worksheets within the workbook and automatically generates certain column headings and conditional formatting."]
[]
[null,null,"Identifying CONFIDENTIAL INFORMATION:\n\nPlease use the macro at the top of each \nworksheet to identify confidential information. \n\n"]
[null,null,"-Do this by selecting the cell or cells that contain confidential information and then run the Mark selected cells as CONFIDENTIAL macro. This will format the cells a specific colour that is identified by the AER's database which in turn marks that information as confidential.\n\n-To reverse this, select the cell or cells and run the Return cells to NON-CONFIDENTIAL macro"]
[]
[null,null,"UNITS OF MEASURE\n\nAll amounts are to be unrounded and reported in nominal terms on a one for one basis: that is 1000 is to be entered as '1000'. Applicable units of measure may be identified in the table column headings or row descriptors.\n\n"]
[]
[null,null,"COLOUR CODING OF INPUT / NON-INPUT CELLS:"]
[null,null,null,"Yellow = Input cell (mandatory)"]
[null,null,null,"Darker yellow = input cell (mandatory)"]
[null,null,null,"Orange = input cell (if data available)"]
[null,null,null,"Grey = Not applicable/No inputs required"]
[null,null,null,"\nPLEASE DO NOT ENTER TEXT into cells that are to contain numeric data."]
[]
[]
[null,null,"WORKSHEET NAVIGATION\n\nMany tables in the worksheets have been \"grouped\" to allow for easy navigation. To ungroup or group data use the outline symbols in the left margin of excel (for Row groupings) or above the columns (for column groupings). \n\n\n\n"]
[]
[null,null,"RETURNING COMPLETED RESPONSES\n\nPlease return four (4) files to the AER: \n1. A confidential version which must contain a complete set of all responses with confidential information marked using the Mark selected cells CONFIDENTIAL macro and which has been completed using the locked template file provided by the AER. \n\n2. An actual and an estimate version with confidential information marked using the Mark selected cells CONFIDENTIAL macro and which has been completed using the locked template file provided by the AER.\n\n3. A public version with confidential information either removed completely or aggregated in some form together with writtten consent to disclose the public version of the response.\n\n\nUse the drop down box on the Business and other details worksheet to identify the file as either confidential ('consolidated') or public. "]
[]
[null,null,"SUBMITTING AMENDED DATA TO THE AER\n\nIf an NSP wishes to correct data previously submitted to the AER it should resubmit that data using the original completed submission as the starting point. Please make any necessary changes to the data. Data that is not being amended should be left unchanged. \n\nNSPs must identify the reason for the amendments in the Amendment Reason box on the  Business and other details worksheet. NSPs may provide further details regarding any amendments in the Amendments worksheet. \n\n."]
[null,null,"NSP may use Amended Data macro \nto highlight cells that contain amended data.\nNB: if data is also CONFIDENTIAL, re-apply \nthe Confidentiality macro after applying the \nAmended macro"]
[null,null,"Please resubmit two (2) files - a confidential version and a public version of the amended submission to the AER"]

{"sheet":"Contents","index":2,"n_rows":12,"n_cols":2,"rows_kept":12,"cut":false,"hidden":false,"merged":[]}
[null,"REGULATORY REPORTING STATEMENT"]
[null,{"$f":"dms_TradingName","v":"TasNetworks (D)"}]
[null,{"$f":"CONCATENATE(\"Benchmarking RIN response \",CRY)","v":"Benchmarking RIN response 2015-16"}]
[]
[null,"CONTENTS"]
[]
[]
[]
[]
[]
[]
[null,"3.             ECONOMIC BENCHMARKING"]

{"sheet":"Business & other details","index":3,"n_rows":91,"n_cols":9,"rows_kept":91,"cut":false,"hidden":false,"merged":[[23,4,23,7],[7,1,7,8],[11,1,11,8],[13,2,13,4],[14,2,14,4],[17,2,17,3],[17,4,17,7],[18,4,18,7],[19,2,19,3],[19,4,19,7],[22,2,22,3],[22,4,22,7],[54,0,87,0],[82,4,82,8],[24,2,24,3],[24,4,24,7],[32,1,32,8],[49,2,49,3],[51,2,51,8]]}
[null,"REGULATORY REPORTING STATEMENT"]
[null,{"$f":"dms_TradingName","v":"TasNetworks (D)"}]
[null,{"$f":"CONCATENATE(\"Benchmarking RIN response \",CRY)","v":"Benchmarking RIN response 2015-16"}]
[null,"BUSINESS & OTHER DETAILS"]
[]
[]
[null,"Instructions"]
[null,"Complete the following business details regulatory template before entering data or values in any other regulatory template. This regulatory template is linked to other cells within the spreadsheet and automatically generates column headings."]
[]
[null,"SUBMISSION PARTICULARS INPUT SHEETS"]
[]
[null,"ENTITY DETAILS"]
[]
[null,"Short name","TasNetworks (D)"]
[null,"ACN / ABN",{"$f":"INDEX(dms_ABN_List,MATCH(dms_TradingName,dms_TradingName_List))","v":24167357299}]
[]
[]
[null,"Business address","Address 1",null,"1-5 Maria Street"]
[null,null,null,"Address 2",{"$f":"IF(ISBLANK(INDEX(dms_Addr2_List,MATCH(dms_TradingName,dms_TradingName_List))),\"\",INDEX(dms_Addr2_List,MATCH(dms_TradingName,dms_TradingName_List)))","v":""}]
[null,null,"Suburb",null,"LENAH VALLEY"]
[null,null,null,"State",{"$f":"INDEX(dms_State_List,MATCH(dms_TradingName,dms_TradingName_List))","v":"Tas"},"p/code",7008]
[]
[null,"Postal address","Address 1",null,"GPO Box 606"]
[null,null,null,"Address 2",{"$f":"IF(ISBLANK(INDEX(dms_PAddr2_List,MATCH(dms_TradingName,dms_TradingName_List))),\"\",INDEX(dms_PAddr2_List,MATCH(dms_TradingName,dms_TradingName_List)))","v":""}]
[null,null,"Suburb",null,"MOONAH"]
[null,null,null,"State",{"$f":"INDEX(dms_PState_List,MATCH(dms_TradingName,dms_TradingName_List))","v":"Tas"},"p/code",7009]
[]
[]
[null,"Contact name/s","Kirstan Wilding"]
[null,"Contact phone/s","03 6271 6696"]
[null,"Contact email address/s","revenue.reset@tasnetworks.com.au"]
[]
[null,"REGULATORY CONTROL PERIODS"]
[]
[null,"Forthcoming regulatory control period","2015-16",{"$f":"dms_FRCP_y2","v":"2016-17"},{"$f":"dms_FRCP_y3","v":"2017-18"},{"$f":"dms_FRCP_y4","v":"2018-19"},{"$f":"dms_FRCP_y5","v":"2019-20"},{"$f":"dms_FRCP_y6","v":"2020-21"},{"$f":"IF(dms_RPT=\"financial\",VALUE(LEFT(FRCP_y6,4)+1)&\"-\"&VALUE(MID(FRCP_y6,3,2)+2),VALUE(LEFT(FRCP_y6,4)+1))","v":"2021-22"}]
[]
[]
[null,"Current regulatory control period",{"$f":"dms_CRCP_FirstYear_Result","v":"2010-11"},{"$f":"IF(dms_RPT=\"financial\",VALUE(LEFT(CRCP_y1,4)+1)&\"-\"&TEXT(VALUE(RIGHT(CRCP_y1,2)+1),\"0#\"),VALUE(LEFT(CRCP_y1,4)+1))","v":"2011-12"},{"$f":"IF(dms_RPT=\"financial\",VALUE(LEFT(CRCP_y2,4)+1)&\"-\"&TEXT(VALUE(RIGHT(CRCP_y2,2)+1),\"0#\"),VALUE(LEFT(CRCP_y2,4)+1))","v":"2012-13"},{"$f":"IF(dms_RPT=\"financial\",VALUE(LEFT(CRCP_y3,4)+1)&\"-\"&TEXT(VALUE(RIGHT(CRCP_y3,2)+1),\"0#\"),VALUE(LEFT(CRCP_y3,4)+1))","v":"2013-14"},{"$f":"IF(dms_RPT=\"financial\",VALUE(LEFT(CRCP_y4,4)+1)&\"-\"&TEXT(VALUE(RIGHT(CRCP_y4,2)+1),\"0#\"),VALUE(LEFT(CRCP_y4,4)+1))","v":"2014-15"},{"$f":"IF(dms_RPT=\"financial\",VALUE(LEFT(CRCP_y5,4)+1)&\"-\"&TEXT(VALUE(RIGHT(CRCP_y5,2)+1),\"0#\"),VALUE(LEFT(CRCP_y5,4)+1))","v":"2015-16"}]
[]
[]
[null,"Previous regulatory control period",{"$f":"IF(dms_RPT=\"financial\",VALUE(LEFT(PRCP_y2,4)-1)&\"-\"&TEXT(VALUE(MID(PRCP_y2,3,2)),\"0#\"),VALUE(LEFT(PRCP_y2,4)-1))","v":"2005-06"},{"$f":"IF(dms_RPT=\"financial\",VALUE(LEFT(PRCP_y3,4)-1)&\"-\"&TEXT(VALUE(MID(PRCP_y3,3,2)),\"0#\"),VALUE(LEFT(PRCP_y3,4)-1))","v":"2006-07"},{"$f":"IF(dms_RPT=\"financial\",VALUE(LEFT(PRCP_y4,4)-1)&\"-\"&TEXT(VALUE(MID(PRCP_y4,3,2)),\"0#\"),VALUE(LEFT(PRCP_y4,4)-1))","v":"2007-08"},{"$f":"IF(dms_RPT=\"financial\",VALUE(LEFT(PRCP_y5,4)-1)&\"-\"&TEXT(VALUE(RIGHT(PRCP_y5,2)-1),\"0#\"),VALUE(LEFT(PRCP_y5,4)-1))","v":"2008-09"},{"$f":"IF(dms_RPT=\"financial\",VALUE(LEFT(CRCP_y1,4)-1)&\"-\"&TEXT(VALUE(RIGHT(CRCP_y1,2)-1),\"0#\"),VALUE(LEFT(CRCP_y1,4)-1))","v":"2009-10"}]
[]
[]
[null,"Current regulatory year","2015-16","CRY"]
[]
[]
[]
[]
[]
[null,"Source","Reporting",null,"Please select the correct submission type from the dropdown list."]
[null,"Data quality (actual, estimate, public, consolidated)","Consolidated"]
[null,"Amended RIN submission - amendment reason","20171129 - amended 3.2.3 provisions (see d18/27706)"]
[null,"Submission Date","2017-11-29","dms_SubmissionDate","Please enter date this file submitted to AER (dd/mm/yyyy)"]
[null,"EBSS - First application of scheme in forthcoming period?","No"]
["HIDE THESE ROWS","Sector",{"$f":"INDEX(dms_Sector_List,MATCH(dms_TradingName,dms_TradingName_List))","v":"Electricity"},"dms_Sector","=INDEX(dms_Sector_List,MATCH(dms_TradingName,dms_TradingName_List))"]
[null,"Segment",{"$f":"INDEX(dms_Segment_List,MATCH(dms_TradingName,dms_TradingName_List))","v":"Distribution"},"dms_Segment","=INDEX(dms_Segment_List,MATCH(dms_TradingName,dms_TradingName_List))"]
[null,"Regulatory Year Ending",{"$f":"IF(dms_MultiYear_Flag=1,LEFT(dms_Specified_FinalYear,2)&RIGHT(dms_Specified_FinalYear,2),INDEX(dms_RYE_Formula_Result,MATCH(dms_Model,dms_Model_List)))","v":"2016"},"dms_RYE","=IF(dms_MultiYear_Flag=1,LEFT(dms_Specified_FinalYear,2)&RIGHT(dms_Specified_FinalYear,2),INDEX(dms_RYE_Formula_Result,MATCH(dms_Model,dms_Model_List)))"]
[null,"Reporting Period Type",{"$f":"INDEX(dms_RPT_List,MATCH(dms_TradingName,dms_TradingName_List))","v":"Financial"},"dms_RPT","=INDEX(dms_RPT_List,MATCH(dms_TradingName,dms_TradingName_List))"]
[null,"Model or RIN Type","EB","dms_Model","Drop down selection"]
[null,"Security Classification","Public","dms_Classification","Always Public"]
[null,"Template - version no.",5,"dms_TemplateNumber"]
[null,"Dollar $ real month",{"$f":"INDEX(dms_RPTMonth_List,MATCH(dms_TradingName,dms_TradingName_List))","v":"June"},"dms_RPTMonth","=INDEX(dms_RPTMonth_List,MATCH(dms_TradingName,dms_TradingName_List))"]
[null,"Dollar $ real  (the last month before the FRCP_y1)",{"$f":"IF(SUM(dms_SingleYear_Model)>0,CONCATENATE(dms_RPTMonth)&\" \"&VALUE((LEFT(CRY,2))&RIGHT(CRY,2)),CONCATENATE(dms_RPTMonth)&\" \"&VALUE((LEFT(dms_CRCP_FinalYear_Result,2))&RIGHT(dms_CRCP_FinalYear_Result,2)))","v":"June 2016"},"dms_DollarReal","=IF(SUM(dms_SingleYear_Model)>0,CONCATENATE(dms_RPTMonth)&\" \"&VALUE((LEFT(CRY,2))&RIGHT(CRY,2)),CONCATENATE(dms_RPTMonth)&\" \"&VALUE((LEFT(dms_CRCP_FinalYear_Result,2))&RIGHT(dms_CRCP_FinalYear_Result,2)))"]
[null,"Form of control",{"$f":"INDEX(dms_FormControl_List,MATCH(dms_TradingName,dms_TradingName_List))","v":"Revenue cap"},"dms_FormControl","=INDEX(dms_FormControl_List,MATCH(dms_TradingName,dms_TradingName_List))"]
[null,"RIN response - version no.",1,"dms_RINversion"]
[null,"Jurisdiction",{"$f":"INDEX(dms_JurisdictionList,MATCH(dms_TradingName,dms_TradingName_List))","v":"Tas"},"dms_Jurisdiction","=INDEX(dms_JurisdictionList,MATCH(dms_TradingName,dms_TradingName_List))"]
[null,"Backcast Multiyear EB, CA or ARR?",0,"dms_MultiYear_Flag","1=y, 0-n"]
[null,null,2013,"dms_Specified_FinalYear","The result here is returned to dms_CRCP_FinalYear_Result if dms_MultiYear_Flag is set to 1"]
[null,"Single Year Model T/F",{"$f":"IF(dms_Model=\"EB\",1,0)","v":1},"dms_EB"]
[null,null,{"$f":"IF(dms_Model=\"CA\",1,0)","v":0},"dms_CA","=dms_SingleYear_Model"]
[null,null,{"$f":"IF(dms_Model=\"ARR\",1,0)","v":0},"dms_ARR"]
[null,"Single Year Final Year Reference","CRY","dms_SingleYear_FinalYear_Ref","This is the reference for EB, CA & ARR RINs"]
[null,"Single Year Final Year Result",{"$f":"INDIRECT(dms_SingleYear_FinalYear_Ref)","v":"2015-16"},"dms_SingleYear_FinalYear_Result","=INDIRECT(dms_SingleYear_FinalYear_Ref)",null,null,null,"Formula errors OK"]
[null,"FRCP length in years",{"$f":"INDEX(dms_FRCPlength_List,MATCH(dms_TradingName,dms_TradingName_List))","v":5},"dms_FRCPlength_Num","=INDEX(dms_FRCPlength_List,MATCH(dms_TradingName,dms_TradingName_List))"]
[null,"Multi Year Final Year Reference",{"$f":"INDEX(dms_FinalYear_List,MATCH(dms_FRCPlength_Num,dms_FRCPlength_Num_List))","v":"dms_FRCP_y5"},"dms_MultiYear_FinalYear_Ref","=INDEX(dms_FinalYear_List,MATCH(dms_FRCPlength_Num,dms_FRCPlength_Num_List))"]
[null,"Multi Year Final Year Result",{"$f":"IF(dms_MultiYear_Flag=0,INDIRECT(dms_MultiYear_FinalYear_Ref),dms_Specified_FinalYear)","v":"2019-20"},"dms_MultiYear_FinalYear_Result","=IF(dms_MultiYear_Flag=0,INDIRECT(dms_MultiYear_FinalYear_Ref),dms_Specified_FinalYear)",null,null,null,"Formula errors OK"]
[null,"CRCP length in years",{"$f":"INDEX(dms_CRCPlength_List,MATCH(dms_TradingName,dms_TradingName_List))","v":5},"dms_CRCPlength_Num","=INDEX(dms_CRCPlength_List,MATCH(dms_TradingName,dms_TradingName_List))"]
[null,"CRCP Final Year Reference",{"$f":"INDEX(dms_CFinalYear_List,MATCH(dms_CRCPlength_Num,dms_CRCPlength_Num_List))","v":"CRCP_y5"},"dms_CRCP_FinalYear_Ref","=INDEX(dms_CFinalYear_List,MATCH(dms_CRCPlength_Num,dms_CRCPlength_Num_List))"]
[null,"CRCP First Year Result",{"$f":"INDEX(dms_CRCP_years,MATCH(dms_CRCPlength_Num,dms_CRCP_index))","v":"2010-11"},"dms_CRCP_FirstYear_Result","=INDEX(dms_CRCP_years,MATCH(dms_CRCPlength_Num,dms_CRCP_index))"]
[null,"CRCP Final Year Result",{"$f":"IF(dms_MultiYear_Flag=0,(IF(SUM(dms_SingleYear_Model)>0,CRY,dms_CRCP_yZ)),dms_Specified_FinalYear)","v":"2015-16"},"dms_CRCP_FinalYear_Result","=IF(dms_MultiYear_Flag=0,(IF(SUM(dms_SingleYear_Model)>0,CRY,dms_CRCP_yZ)),dms_Specified_FinalYear)"]
[null,"Table 6.6.3 - Public lighting repair - no. business days",{"$f":"INDEX(dms_663_List,MATCH(dms_TradingName,dms_TradingName_List))","v":5},"dms_663"]
[null,"Distribution Determination Reference",{"$f":"INDEX(dms_DeterminationRef_List,MATCH(dms_TradingName,dms_TradingName_List))","v":"distribution determination"}]
[null,"Backcast templates only - unit of measure ","$0s","dms_Backcast_UOM","If the cover sheet is for Backcast data ensure to apply dms_Backcast_UOM named range to this field. Otherwise, do not apply this named range."]
[null,"EB/CA Unit of Measure for Monetary Values","$0s","dms_dollar_nom_UOM","If the cover sheet is attached to an EB files make sure this field is set"]
[]
[null,"discard this record?","NO","dms_DISCARD","If record is to be discarded from DB set this flag to YES"]
[]
[null,"USES NAMED RANGES FLAG","yes","dms_Defined_Names_Used"]
[]
[]
[null,"Calendar Year for table 3.6 data",{"$f":"IF(dms_RPT=\"Calendar\",dms_RYE,VALUE(dms_RYE)-1)","v":2015},"dms_0306_Year","=IF(dms_RPT=\"Calendar\",dms_RYE,VALUE(dms_RYE)-1)"]

{"sheet":"3.1 Revenue","index":4,"n_rows":49,"n_cols":4,"rows_kept":49,"cut":false,"hidden":false,"merged":[[9,2,9,3],[29,2,29,3],[41,2,41,3]]}
[null,"REGULATORY REPORTING STATEMENT"]
[null,{"$f":"dms_TradingName","v":"TasNetworks (D)"}]
[null,{"$f":"CONCATENATE(\"Benchmarking RIN response \",CRY)","v":"Benchmarking RIN response 2015-16"}]
[null,"3.1 REVENUE"]
[]
[null,"There are THREE tables on this worksheet. Each table has been grouped for ease of navigation. See the Instructions sheet on how to group or ungroup tables. "]
[]
[null,"3.1.1 - REVENUE GROUPING BY CHARGEABLE QUANTITY"]
[null,null,"Standard control services","Alternative control services"]
[null,null,"REVENUE\n($0's)"]
[null,null,{"$f":"CRY","v":"2015-16"},{"$f":"CRY","v":"2015-16"}]
["DREV0101","Revenue from Fixed Customer Charges ",52025007.968337841,0]
["DREV0102","Revenue from Energy Delivery charges where time of use is not a determinant",253268411.1577341,0]
["DREV0103","Revenue from On–Peak Energy Delivery charges ",43229128.217906386,0]
["DREV0104","Revenue from Shoulder period Energy Delivery Charges",15686732.799240284,0]
["DREV0105","Revenue from Off–Peak Energy Delivery charges ",4629170.6897758087,0]
["DREV0106","Revenue from controlled load customer charges",930778.33995492209,0]
["DREV0107","Revenue from unmetered supplies",4152977.6797988699,0]
["DREV0108","Revenue from Contracted Maximum Demand charges",1479823.5799283315,0]
["DREV0109","Revenue from Measured Maximum Demand charges",39019495.828110263,0]
["DREV0110","Revenue from metering charges",0,14041269.913327198]
["DREV0111","Revenue from connection charges",0,0]
["DREV0112","Revenue from public lighting charges",0,5313512.8499999996]
["DREV0113","Revenue from other Sources",-1457407.274114077,5915073.310002137]
["DREV01","Total revenue by chargeable quantity",{"$f":"SUM(C12:C24)","v":412964118.9866727},{"$f":"SUM(D12:D24)","v":25269856.073329333}]
[]
[]
[null,"3.1.2 - REVENUE GROUPING BY CUSTOMER TYPE OR CLASS"]
[null,null,"Standard control services","Alternative control services"]
[null,null,"REVENUE\n($0's)"]
[null,null,{"$f":"CRY","v":"2015-16"},{"$f":"CRY","v":"2015-16"}]
["DREV0201","Revenue from residential Customers ",202123725.76693118,11819670.250380505]
["DREV0202","Revenue from Non residential customers not on demand tariffs ",122080952.03736766,1855722.3754400003]
["DREV0203","Revenue from Non-residential low voltage demand tariff customers ",40720246.42802792,5400.4]
["DREV0204","Revenue from Non-residential high voltage demand tariff customers ",21943976.218937255,0]
["DREV0205","Revenue from unmetered supplies",4152977.6797988722,5313512.8499999996]
["DREV0206","Revenue from Other Customers",21942240.855610106,6275550.1975088315]
["DREV02","Total revenue by customer class",{"$f":"SUM(C32:C37)","v":412964118.98667306},{"$f":"SUM(D32:D37)","v":25269856.073329333}]
[]
[null,"3.1.3 - REVENUE (penalties) ALLOWED (deducted) THROUGH INCENTIVE SCHEMES"]
[null,null,"Standard control services","Alternative control services"]
[null,null,"REVENUE\n($0's)"]
[null,null,{"$f":"CRY","v":"2015-16"},{"$f":"CRY","v":"2015-16"}]
["DREV0301","EBSS"]
["DREV0302","STPIS",-2560072]
["DREV0303","F-Factor "]
["DREV0304","S-Factor True up"]
["DREV0305","Other"]
["DREV03","Total revenue of incentive schemes",{"$f":"SUM(C44:C48)","v":-2560072},{"$f":"SUM(D44:D48)","v":0}]

{"sheet":"3.2 Operating expenditure","index":5,"n_rows":79,"n_cols":4,"rows_kept":79,"cut":false,"hidden":false,"merged":[[14,2,14,3],[65,2,65,3]]}
[null,"REGULATORY REPORTING STATEMENT"]
[null,{"$f":"dms_TradingName","v":"TasNetworks (D)"}]
[null,{"$f":"CONCATENATE(\"Benchmarking RIN response \",CRY)","v":"Benchmarking RIN response 2015-16"}]
[null,"3.2 OPERATING EXPENDITURE"]
[]
[null,"There are THREE tables on this worksheet. Each table has been grouped for ease of navigation. See the Instructions sheet on how to group or ungroup tables. "]
[]
[null,"Instructions"]
[null,{"$f":"CONCATENATE(\"In table 3.2.1, please list each opex category reported in response to \",dms_TradingName, \"'s annual reporting RIN and report opex for each category.\")","v":"In table 3.2.1, please list each opex category reported in response to TasNetworks (D)'s annual reporting RIN and report opex for each category."}]
[]
[]
[null,"3.2.1 - OPEX CATEGORIES"]
[null,"CURRENT OPEX CATEGORIES AND COST ALLOCATIONS"]
[null,null,"Standard control services","Alternative control services"]
[null,null,"EXPENDITURE\n($0's)"]
[null,null,{"$f":"CRY","v":"2015-16"},{"$f":"CRY","v":"2015-16"}]
["DOPEX0101","Overhead network & structures",4227059.444720882]
["DOPEX0102","Underground network",48277.291576115065]
["DOPEX0103","Ground mounted substations",722136.61770041531]
["DOPEX0104","Zone substations",1740996.2762003448]
["DOPEX0105","Decommissioned assets",0]
["DOPEX0106","Connection assets",0]
["DOPEX0107","Other Network asset maintenance - routine costs",1888788.5092833312]
["DOPEX0108","Emergency & unscheduled power system response & repair",0]
["DOPEX0109","Vegetation management",12044005.96376559]
["DOPEX0110","Connection asset repair",633431.58389216266]
["DOPEX0111","Other Non-network asset maintenance - routine costs ",0]
["DOPEX0112","Overhead network & structures",3617286.6008939799]
["DOPEX0113","Underground network",226595.10458220707]
["DOPEX0114","Ground mounted substations",502857.7471172915]
["DOPEX0115","Zone substations",109982.56139520579]
["DOPEX0116","Decommissioned assets",729726.31907005352]
["DOPEX0117","Connection assets",0]
["DOPEX0118","Other Network asset maintenance - non-routine costs ",1405426.8933982416]
["DOPEX0119","Emergency & unscheduled power system response & repair",16721872.923804875]
["DOPEX0120","Vegetation management",0]
["DOPEX0121","Connection asset repair",36613.599316591535]
["DOPEX0122","Other Non-network asset maintenance - non-routine costs ",0]
["DOPEX0123","Public Lighting",null,2555740.2699999982]
["DOPEX0124","Metering",null,4291646.9809140414]
["DOPEX0125","Fee Based",null,2824919.79]
["DOPEX0126","Quoted Services",null,3204037.1099999989]
["DOPEX0127","Negotiated Services",null,2185.6]
["DOPEX0128","Network management",5026205.2855191929,1578319.3471726021]
["DOPEX0129","GSL payments",2148690,0]
["DOPEX0130","Customer service",3446920.0589680881,1083501.1800182643]
["DOPEX0131","Regulatory compliance expenditure",1096419.1295730819,160890.94378618302]
["DOPEX0132","Electrical safety levy",2745143.9671725817,401902.76378415496]
["DOPEX0133","NEM levy",370163.17630702665,54193.734604798803]
["DOPEX0134","Other Network Division Management Costs (itemise in table 3)",1287672.5405933396,0]
["DOPEX0135","System operations",46371.678519117217]
["DOPEX0136","Corporate and shared services costs",7956524.1597087765,2610645.3518120092]
["DOPEX0137","NEM & contestability related costs *",689183.68987714546,100899.9283931447]
["DOPEX0138","Other Non-Network Division Management Costs ",0]
["DOPEX0139","Other Operating Costs ( Not allocated to the Distribution)",498073.23942776752,151420.08932743024]
["DOPEX0140"]
["DOPEX0141"]
["DOPEX0142"]
["DOPEX01","Total opex ",{"$f":"SUM(C17:C58)","v":69966424.362383395},{"$f":"SUM(D17:D58)","v":19020303.089812625}]
[]
[]
[]
[null,"3.2.2 - OPEX CONSISTENCY"]
[null,"CURRENT COST ALLOCATION APPROACH"]
[null,null,"Standard control services","Alternative control services"]
[null,null,"EXPENDITURE\n($0's)"]
[null,null,{"$f":"CRY","v":"2015-16"},{"$f":"CRY","v":"2015-16"}]
["DOPEX0201","Opex for network services",69929810.763066798,19005292.075044937]
["DOPEX0202","Opex for metering",0,7020.9056550547411]
["DOPEX0203","Opex for connection services",36613.599316591535,4542.8793718903707]
["DOPEX0204","Opex for public lighting",0,3447.2297407421311]
["DOPEX0205","Opex for amounts payable for easement levy or similar direct charges on DNSP"]
["DOPEX0206","Opex for transmission connection point planning"]
[]
[]
[]
[null,"3.2.4 - OPEX FOR HIGH VOLTAGE CUSTOMERS"]
[null,null,"End user costs (not standard control services)"]
["DOPEX0401","Opex for high voltage customers"]

{"sheet":"3.2.3 Provisions","index":6,"n_rows":373,"n_cols":3,"rows_kept":373,"cut":false,"hidden":false,"merged":[]}
[null,"REGULATORY REPORTING STATEMENT"]
[null,{"$f":"dms_TradingName","v":"TasNetworks (D)"}]
[null,{"$f":"CONCATENATE(\"Benchmarking RIN response \",CRY)","v":"Benchmarking RIN response 2015-16"}]
[null,"3.2 OPERATING EXPENDITURE"]
[]
[null,"The is ONE table on this worksheet. Each Provision has been grouped for ease of navigation. See the Instructions sheet on how to group and ungroup tables."]
[]
[null,"Instructions"]
[null,{"$f":"CONCATENATE(\"In table 3.2.3, please list each opex category reported in response to \",dms_TradingName, \"'s annual reporting RIN and report opex for each category.\")","v":"In table 3.2.3, please list each opex category reported in response to TasNetworks (D)'s annual reporting RIN and report opex for each category."}]
[]
[null,"3.2.3 - PROVISIONS"]
[null,null,"VALUE ($0's)"]
[null,null,{"$f":"CRY","v":"2015-16"}]
["DOPEX03A","Long Service Leave"]
[null,"Brief description of provision"]
["DOPEX0301A","Opening balance (the carrying amount at the beginning of the period)",7851705.5915607661]
[null,"Additional provisions made in the period, including increases to existing provisions"]
["DOPEX0302A","Opex component",1136597.5256195413]
["DOPEX0303A","Capex component",771690.38578472962]
["DOPEX0304A","Other component",114857.27256648807]
[null,"Amounts used (that is, incurred and charged against the provision) during the period"]
["DOPEX0305A","Opex component",-697429.29913066642]
["DOPEX0306A","Capex component",-473518.08601761085]
["DOPEX0307A","Other component"]
[null,"Unused amounts reversed during the period"]
["DOPEX0308A","Opex component"]
["DOPEX0309A","Capex component"]
["DOPEX0310A","Other component"]
[null,"The increase during the period in the discounted amount arising from the passage of time and the effect of any change in the discount rate"]
["DOPEX0311A","Opex component"]
["DOPEX0312A","Capex component"]
["DOPEX0313A","Other component"]
["DOPEX0314A","Closing balance (carrying amount at the end of the period)",8703903.3903832473]
["DOPEX03B","Annual Leave "]
[null,"Brief description of provision"]
["DOPEX0301B","Opening balance (the carrying amount at the beginning of the period)",5062386.4306641892]
[null,"Additional provisions made in the period, including increases to existing provisions"]
["DOPEX0302B","Opex component",2815436.293058028]
["DOPEX0303B","Capex component",1911534.2679969361]
["DOPEX0304B","Other component",74054.215523396124]
[null,"Amounts used (that is, incurred and charged against the provision) during the period"]
["DOPEX0305B","Opex component",-2683178.5350807672]
["DOPEX0306B","Capex component",-1821738.1546182244]
["DOPEX0307B","Other component"]
[null,"Unused amounts reversed during the period"]
["DOPEX0308B","Opex component"]
["DOPEX0309B","Capex component"]
["DOPEX0310B","Other component"]
[null,"The increase during the period in the discounted amount arising from the passage of time and the effect of any change in the discount rate"]
["DOPEX0311B","Opex component"]
["DOPEX0312B","Capex component"]
["DOPEX0313B","Other component"]
["DOPEX0314B","Closing balance (carrying amount at the end of the period)",5358494.5175435571]
["DOPEX03C","RBF "]
[null,"Brief description of provision"]
["DOPEX0301C","Opening balance (the carrying amount at the beginning of the period)",86646374.312734887]
[null,"Additional provisions made in the period, including increases to existing provisions"]
["DOPEX0302C","Opex component",1428825.1360791279]
["DOPEX0303C","Capex component",970097.67804905737]
["DOPEX0304C","Other component",28369013.914866693]
[null,"Amounts used (that is, incurred and charged against the provision) during the period"]
["DOPEX0305C","Opex component",-1677397.2510720065]
["DOPEX0306C","Capex component",-1138865.167851239]
["DOPEX0307C","Other component"]
[null,"Unused amounts reversed during the period"]
["DOPEX0308C","Opex component"]
["DOPEX0309C","Capex component"]
["DOPEX0310C","Other component"]
[null,"The increase during the period in the discounted amount arising from the passage of time and the effect of any change in the discount rate"]
["DOPEX0311C","Opex component"]
["DOPEX0312C","Capex component"]
["DOPEX0313C","Other component"]
["DOPEX0314C","Closing balance (carrying amount at the end of the period)",114598048.62280653]
["DOPEX03D","SAF (Part)"]
[null,"Brief description of provision"]
["DOPEX0301D","Opening balance (the carrying amount at the beginning of the period)",1317311.7361327992]
[null,"Additional provisions made in the period, including increases to existing provisions"]
["DOPEX0302D","Opex component",2620908.4792344938]
["DOPEX0303D","Capex component",1779460.0373993306]
["DOPEX0304D","Other component",19270.059398899546]
[null,"Amounts used (that is, incurred and charged against the provision) during the period"]
["DOPEX0305D","Opex component",-2549887.874950815]
["DOPEX0306D","Capex component",-1731240.7545987079]
["DOPEX0307D","Other component"]
[null,"Unused amounts reversed during the period"]
["DOPEX0308D","Opex component"]
["DOPEX0309D","Capex component"]
["DOPEX0310D","Other component"]
[null,"The increase during the period in the discounted amount arising from the passage of time and the effect of any change in the discount rate"]
["DOPEX0311D","Opex component"]
["DOPEX0312D","Capex component"]
["DOPEX0313D","Other component"]
["DOPEX0314D","Closing balance (carrying amount at the end of the period)",1455821.682616001]
["DOPEX03E","Public Holidays"]
[null,"Brief description of provision"]
["DOPEX0301E","Opening balance (the carrying amount at the beginning of the period)",0]
[null,"Additional provisions made in the period, including increases to existing provisions"]
["DOPEX0302E","Opex component",1486378.5937730961]
["DOPEX0303E","Capex component",1009173.4713443968]
["DOPEX0304E","Other component",0]
[null,"Amounts used (that is, incurred and charged against the provision) during the period"]
["DOPEX0305E","Opex component",-1486378.5937730961]
["DOPEX0306E","Capex component",-1009173.4713443968]
["DOPEX0307E","Other component"]
[null,"Unused amounts reversed during the period"]
["DOPEX0308E","Opex component"]
["DOPEX0309E","Capex component"]
["DOPEX0310E","Other component"]
[null,"The increase during the period in the discounted amount arising from the passage of time and the effect of any change in the discount rate"]
["DOPEX0311E","Opex component"]
["DOPEX0312E","Capex component"]
["DOPEX0313E","Other component"]
["DOPEX0314E","Closing balance (carrying amount at the end of the period)",0]
["DOPEX03F","Sick Leave"]
[null,"Brief description of provision"]
["DOPEX0301F","Opening balance (the carrying amount at the beginning of the period)",0]
[null,"Additional provisions made in the period, including increases to existing provisions"]
["DOPEX0302F","Opex component",773930.62871229416]
["DOPEX0303F","Capex component",525458.49518374179]
["DOPEX0304F","Other component",0]
[null,"Amounts used (that is, incurred and charged against the provision) during the period"]
["DOPEX0305F","Opex component",-773930.62871229416]
["DOPEX0306F","Capex component",-525458.49518374179]
["DOPEX0307F","Other component"]
[null,"Unused amounts reversed during the period"]
["DOPEX0308F","Opex component"]
["DOPEX0309F","Capex component"]
["DOPEX0310F","Other component"]
[null,"The increase during the period in the discounted amount arising from the passage of time and the effect of any change in the discount rate"]
["DOPEX0311F","Opex component"]
["DOPEX0312F","Capex component"]
["DOPEX0313F","Other component"]
["DOPEX0314F","Closing balance (carrying amount at the end of the period)",0]
["DOPEX03G","Time Bank"]
[null,"Brief description of provision"]
["DOPEX0301G","Opening balance (the carrying amount at the beginning of the period)",146900.94463019384]
[null,"Additional provisions made in the period, including increases to existing provisions"]
["DOPEX0302G","Opex component",100033.57822945369]
["DOPEX0303G","Capex component",67917.577537604011]
["DOPEX0304G","Other component",2148.9142251843987]
[null,"Amounts used (that is, incurred and charged against the provision) during the period"]
["DOPEX0305G","Opex component",-101845.32833873124]
["DOPEX0306G","Capex component",-69147.661282517874]
["DOPEX0307G","Other component"]
[null,"Unused amounts reversed during the period"]
["DOPEX0308G","Opex component"]
["DOPEX0309G","Capex component"]
["DOPEX0310G","Other component"]
[null,"The increase during the period in the discounted amount arising from the passage of time and the effect of any change in the discount rate"]
["DOPEX0311G","Opex component"]
["DOPEX0312G","Capex component"]
["DOPEX0313G","Other component"]
["DOPEX0314G","Closing balance (carrying amount at the end of the period)",146008.02500118682]
["DOPEX03H","Workers' compensation"]
[null,"Brief description of provision"]
["DOPEX0301H","Opening balance (the carrying amount at the beginning of the period)",676343.94099125965]
[null,"Additional provisions made in the period, including increases to existing provisions"]
["DOPEX0302H","Opex component",395575.43167045387]
["DOPEX0303H","Capex component",268575.06777198042]
["DOPEX0304H","Other component",9893.7765143182332]
[null,"Amounts used (that is, incurred and charged against the provision) during the period"]
["DOPEX0305H","Opex component",-385791.98108035518]
["DOPEX0306H","Capex component",-261932.61554944559]
["DOPEX0307H","Other component"]
[null,"Unused amounts reversed during the period"]
["DOPEX0308H","Opex component"]
["DOPEX0309H","Capex component"]
["DOPEX0310H","Other component"]
[null,"The increase during the period in the discounted amount arising from the passage of time and the effect of any change in the discount rate"]
["DOPEX0311H","Opex component"]
["DOPEX0312H","Capex component"]
["DOPEX0313H","Other component"]
["DOPEX0314H","Closing balance (carrying amount at the end of the period)",702663.62031821162]
["DOPEX03I","PT"]
[null,"Brief description of provision"]
["DOPEX0301I","Opening balance (the carrying amount at the beginning of the period)",846029.52193144313]
[null,"Additional provisions made in the period, including increases to existing provisions"]
["DOPEX0302I","Opex component",2426114.6526802676]
["DOPEX0303I","Capex component",1647205.1980443206]
["DOPEX0304I","Other component",12375.991721368224]
[null,"Amounts used (that is, incurred and charged against the provision) during the period"]
["DOPEX0305I","Opex component",-2380458.5499264738]
["DOPEX0306I","Capex component",-1616207.0876724913]
["DOPEX0307I","Other component"]
[null,"Unused amounts reversed during the period"]
["DOPEX0308I","Opex component"]
["DOPEX0309I","Capex component"]
["DOPEX0310I","Other component"]
[null,"The increase during the period in the discounted amount arising from the passage of time and the effect of any change in the discount rate"]
["DOPEX0311I","Opex component"]
["DOPEX0312I","Capex component"]
["DOPEX0313I","Other component"]
["DOPEX0314I","Closing balance (carrying amount at the end of the period)",935059.72677843482]
["DOPEX03J","Provision name"]
[null,"Brief description of provision"]
["DOPEX0301J","Opening balance (the carrying amount at the beginning of the period)"]
[null,"Additional provisions made in the period, including increases to existing provisions"]
["DOPEX0302J","Opex component"]
["DOPEX0303J","Capex component"]
["DOPEX0304J","Other component"]
[null,"Amounts used (that is, incurred and charged against the provision) during the period"]
["DOPEX0305J","Opex component"]
["DOPEX0306J","Capex component"]
["DOPEX0307J","Other component"]
[null,"Unused amounts reversed during the period"]
["DOPEX0308J","Opex component"]
["DOPEX0309J","Capex component"]
["DOPEX0310J","Other component"]
[null,"The increase during the period in the discounted amount arising from the passage of time and the effect of any change in the discount rate"]
["DOPEX0311J","Opex component"]
["DOPEX0312J","Capex component"]
["DOPEX0313J","Other component"]
["DOPEX0314J","Closing balance (carrying amount at the end of the period)"]
["DOPEX03K","Provision name"]
[null,"Brief description of provision"]
["DOPEX0301K","Opening balance (the carrying amount at the beginning of the period)"]
[null,"Additional provisions made in the period, including increases to existing provisions"]
["DOPEX0302K","Opex component"]
["DOPEX0303K","Capex component"]
["DOPEX0304K","Other component"]
[null,"Amounts used (that is, incurred and charged against the provision) during the period"]
["DOPEX0305K","Opex component"]
["DOPEX0306K","Capex component"]
["DOPEX0307K","Other component"]
[null,"Unused amounts reversed during the period"]
["DOPEX0308K","Opex component"]
["DOPEX0309K","Capex component"]
["DOPEX0310K","Other component"]
[null,"The increase during the period in the discounted amount arising from the passage of time and the effect of any change in the discount rate"]
["DOPEX0311K","Opex component"]
["DOPEX0312K","Capex component"]
["DOPEX0313K","Other component"]
["DOPEX0314K","Closing balance (carrying amount at the end of the period)"]
["DOPEX03L","Provision name"]
[null,"Brief description of provision"]
["DOPEX0301L","Opening balance (the carrying amount at the beginning of the period)"]
[null,"Additional provisions made in the period, including increases to existing provisions"]
["DOPEX0302L","Opex component"]
["DOPEX0303L","Capex component"]
["DOPEX0304L","Other component"]
[null,"Amounts used (that is, incurred and charged against the provision) during the period"]
["DOPEX0305L","Opex component"]
["DOPEX0306L","Capex component"]
["DOPEX0307L","Other component"]
[null,"Unused amounts reversed during the period"]
["DOPEX0308L","Opex component"]
["DOPEX0309L","Capex component"]
["DOPEX0310L","Other component"]
[null,"The increase during the period in the discounted amount arising from the passage of time and the effect of any change in the discount rate"]
["DOPEX0311L","Opex component"]
["DOPEX0312L","Capex component"]
["DOPEX0313L","Other component"]
["DOPEX0314L","Closing balance (carrying amount at the end of the period)"]
["DOPEX03M","Provision name"]
[null,"Brief description of provision"]
["DOPEX0301M","Opening balance (the carrying amount at the beginning of the period)"]
[null,"Additional provisions made in the period, including increases to existing provisions"]
["DOPEX0302M","Opex component"]
["DOPEX0303M","Capex component"]
["DOPEX0304M","Other component"]
[null,"Amounts used (that is, incurred and charged against the provision) during the period"]
["DOPEX0305M","Opex component"]
["DOPEX0306M","Capex component"]
["DOPEX0307M","Other component"]
[null,"Unused amounts reversed during the period"]
["DOPEX0308M","Opex component"]
["DOPEX0309M","Capex component"]
["DOPEX0310M","Other component"]
[null,"The increase during the period in the discounted amount arising from the passage of time and the effect of any change in the discount rate"]
["DOPEX0311M","Opex component"]
["DOPEX0312M","Capex component"]
["DOPEX0313M","Other component"]
["DOPEX0314M","Closing balance (carrying amount at the end of the period)"]
["DOPEX03N","Provision name"]
[null,"Brief description of provision"]
["DOPEX0301N","Opening balance (the carrying amount at the beginning of the period)"]
[null,"Additional provisions made in the period, including increases to existing provisions"]
["DOPEX0302N","Opex component"]
["DOPEX0303N","Capex component"]
["DOPEX0304N","Other component"]
[null,"Amounts used (that is, incurred and charged against the provision) during the period"]
["DOPEX0305N","Opex component"]
["DOPEX0306N","Capex component"]
["DOPEX0307N","Other component"]
[null,"Unused amounts reversed during the period"]
["DOPEX0308N","Opex component"]
["DOPEX0309N","Capex component"]
["DOPEX0310N","Other component"]
[null,"The increase during the period in the discounted amount arising from the passage of time and the effect of any change in the discount rate"]
["DOPEX0311N","Opex component"]
["DOPEX0312N","Capex component"]
["DOPEX0313N","Other component"]
["DOPEX0314N","Closing balance (carrying amount at the end of the period)"]
["DOPEX03O","Provision name"]
[null,"Brief description of provision"]
["DOPEX0301O","Opening balance (the carrying amount at the beginning of the period)"]
[null,"Additional provisions made in the period, including increases to existing provisions"]
["DOPEX0302O","Opex component"]
["DOPEX0303O","Capex component"]
["DOPEX0304O","Other component"]
[null,"Amounts used (that is, incurred and charged against the provision) during the period"]
["DOPEX0305O","Opex component"]
["DOPEX0306O","Capex component"]
["DOPEX0307O","Other component"]
[null,"Unused amounts reversed during the period"]
["DOPEX0308O","Opex component"]
["DOPEX0309O","Capex component"]
["DOPEX0310O","Other component"]
[null,"The increase during the period in the discounted amount arising from the passage of time and the effect of any change in the discount rate"]
["DOPEX0311O","Opex component"]
["DOPEX0312O","Capex component"]
["DOPEX0313O","Other component"]
["DOPEX0314O","Closing balance (carrying amount at the end of the period)"]
["DOPEX03P","Provision name"]
[null,"Brief description of provision"]
["DOPEX0301P","Opening balance (the carrying amount at the beginning of the period)"]
[null,"Additional provisions made in the period, including increases to existing provisions"]
["DOPEX0302P","Opex component"]
["DOPEX0303P","Capex component"]
["DOPEX0304P","Other component"]
[null,"Amounts used (that is, incurred and charged against the provision) during the period"]
["DOPEX0305P","Opex component"]
["DOPEX0306P","Capex component"]
["DOPEX0307P","Other component"]
[null,"Unused amounts reversed during the period"]
["DOPEX0308P","Opex component"]
["DOPEX0309P","Capex component"]
["DOPEX0310P","Other component"]
[null,"The increase during the period in the discounted amount arising from the passage of time and the effect of any change in the discount rate"]
["DOPEX0311P","Opex component"]
["DOPEX0312P","Capex component"]
["DOPEX0313P","Other component"]
["DOPEX0314P","Closing balance (carrying amount at the end of the period)"]
["DOPEX03Q","Provision name"]
[null,"Brief description of provision"]
["DOPEX0301Q","Opening balance (the carrying amount at the beginning of the period)"]
[null,"Additional provisions made in the period, including increases to existing provisions"]
["DOPEX0302Q","Opex component"]
["DOPEX0303Q","Capex component"]
["DOPEX0304Q","Other component"]
[null,"Amounts used (that is, incurred and charged against the provision) during the period"]
["DOPEX0305Q","Opex component"]
["DOPEX0306Q","Capex component"]
["DOPEX0307Q","Other component"]
[null,"Unused amounts reversed during the period"]
["DOPEX0308Q","Opex component"]
["DOPEX0309Q","Capex component"]
["DOPEX0310Q","Other component"]
[null,"The increase during the period in the discounted amount arising from the passage of time and the effect of any change in the discount rate"]
["DOPEX0311Q","Opex component"]
["DOPEX0312Q","Capex component"]
["DOPEX0313Q","Other component"]
["DOPEX0314Q","Closing balance (carrying amount at the end of the period)"]
["DOPEX03R","Provision name"]
[null,"Brief description of provision"]
["DOPEX0301R","Opening balance (the carrying amount at the beginning of the period)"]
[null,"Additional provisions made in the period, including increases to existing provisions"]
["DOPEX0302R","Opex component"]
["DOPEX0303R","Capex component"]
["DOPEX0304R","Other component"]
[null,"Amounts used (that is, incurred and charged against the provision) during the period"]
["DOPEX0305R","Opex component"]
["DOPEX0306R","Capex component"]
["DOPEX0307R","Other component"]
[null,"Unused amounts reversed during the period"]
["DOPEX0308R","Opex component"]
["DOPEX0309R","Capex component"]
["DOPEX0310R","Other component"]
[null,"The increase during the period in the discounted amount arising from the passage of time and the effect of any change in the discount rate"]
["DOPEX0311R","Opex component"]
["DOPEX0312R","Capex component"]
["DOPEX0313R","Other component"]
["DOPEX0314R","Closing balance (carrying amount at the end of the period)"]

{"sheet":"3.3 Assets (RAB)","index":7,"n_rows":138,"n_cols":5,"rows_kept":138,"cut":false,"hidden":false,"merged":[[9,2,9,4],[22,2,22,4],[116,2,116,4],[99,2,99,4]]}
[null,"REGULATORY REPORTING STATEMENT"]
[null,{"$f":"dms_TradingName","v":"TasNetworks (D)"}]
[null,{"$f":"CONCATENATE(\"Benchmarking RIN response \",CRY)","v":"Benchmarking RIN response 2015-16"}]
[null,"3.3 ASSETS"]
[]
[null,"There are FOUR tables on this worksheet. Each table has been grouped (and sub-grouped) for ease of navigation. See the Instructions sheet on how to group or ungroup tables. "]
[]
[null,"3.3.1 - REGULATORY ASSET BASE VALUES"]
[null,null,"Network services","Standard control services","Alternative control services"]
[null,null,"VALUE ($0's)"]
[null,null,{"$f":"CRY","v":"2015-16"},{"$f":"CRY","v":"2015-16"},"2015-16"]
[null,"FOR TOTAL ASSET BASE"]
["DRAB0101","Opening value",1477502274,1574082322,50542104]
["DRAB0102","Inflation addition",19650780,20935295,672210]
["DRAB0103","Straight line depreciation",-80892108,-85313540,-5825504]
["DRAB0105","Actual additions (recognised in RAB)",99398965,106320065,6355872]
["DRAB0106","Disposals ",-757141,-757141,-48775]
["DRAB0107","Closing value",{"$f":"SUM(C13:C17)","v":1514902770},{"$f":"SUM(D13:D17)","v":1615267001},51695907]
[]
[]
[null,"3.3.2 - ASSET VALUE ROLL FORWARD"]
[null,null,"Network services","Standard control services","Alternative control services"]
[null,null,"VALUE ($0's)"]
[null,null,{"$f":"CRY","v":"2015-16"},{"$f":"CRY","v":"2015-16"},"2015-16"]
[null,"For overhead network assets less than 33kV:"]
["DRAB0201","Opening value",658435640,662200617]
["DRAB0202","Inflation addition",8757194,8807268]
["DRAB0203","Straight line depreciation",-34050610,-34172641]
["DRAB0205","Actual additions (recognised in RAB)",44674584,44674584]
["DRAB0206","Disposals ","                                                                -  ","                                                             -  "]
["DRAB0207","Closing value",{"$f":"SUM(C26:C30)","v":677816808},{"$f":"SUM(D26:D30)","v":681509828},{"$f":"SUM(E26:E30)","v":0}]
[null,"For underground network assets less than 33kV:"]
["DRAB0301","Opening value",371633153,373738278]
["DRAB0302","Inflation addition",4942721,4970719]
["DRAB0303","Straight line depreciation",-9493933,-9532219]
["DRAB0305","Actual additions (recognised in RAB)",6307423,6307423]
["DRAB0306","Disposals ","                                                                -  ","                                                             -  "]
["DRAB0307","Closing value",{"$f":"SUM(C33:C37)","v":373389364},{"$f":"SUM(D33:D37)","v":375484201},{"$f":"SUM(E33:E37)","v":0}]
[null,"For distribution substations and transformers:"]
["DRAB0401","Opening value",234261688,235753982]
["DRAB0402","Inflation addition",3115680,3135528]
["DRAB0403","Straight line depreciation",-11290273,-11332098]
["DRAB0405","Actual additions (recognised in RAB)",15465091,15456844]
["DRAB0406","Disposals ",-8247,"                                                             -  "]
["DRAB0407","Closing value",{"$f":"SUM(C40:C44)","v":241543939},{"$f":"SUM(D40:D44)","v":243014256},{"$f":"SUM(E40:E44)","v":0}]
[null,"For overhead network assets 33kV and above:"]
["DRAB0501","Opening value",12630446,12663498]
["DRAB0502","Inflation addition",167985,168425]
["DRAB0503","Straight line depreciation",-409714,-410443]
["DRAB0505","Actual additions (recognised in RAB)",361184,361184]
["DRAB0506","Disposals ","                                                                -  ","                                                             -  "]
["DRAB0507","Closing value",{"$f":"SUM(C47:C51)","v":12749901},{"$f":"SUM(D47:D51)","v":12782664},{"$f":"SUM(E47:E51)","v":0}]
[null,"For underground network assets 33kV and above:"]
["DRAB0601","Opening value",10226727,10238316]
["DRAB0602","Inflation addition",136015,136170]
["DRAB0603","Straight line depreciation",-274463,-274674]
["DRAB0605","Actual additions (recognised in RAB)",28379,36626]
["DRAB0606","Disposals ","                                                                -  ",-8247]
["DRAB0607","Closing value",{"$f":"SUM(C54:C58)","v":10116658},{"$f":"SUM(D54:D58)","v":10128191},{"$f":"SUM(E54:E58)","v":0}]
[null,"Zone substations and transformers"]
["DRAB0701","Opening value",50636736,50883849]
["DRAB0702","Inflation addition",673469,676755]
["DRAB0703","Straight line depreciation",-1566172,-1573098]
["DRAB0705","Actual additions (recognised in RAB)",4236662,4236662]
["DRAB0706","Disposals ","                                                                -  ","                                                             -  "]
["DRAB0707","Closing value",{"$f":"SUM(C61:C65)","v":53980695},{"$f":"SUM(D61:D65)","v":54224168},{"$f":"SUM(E61:E65)","v":0}]
[null,"For easements:"]
["DRAB0801","Opening value"]
["DRAB0802","Inflation addition"]
[]
["DRAB0805","Actual additions (recognised in RAB)"]
["DRAB0806","Disposals "]
["DRAB0807","Closing value",{"$f":"SUM(C68:C72)","v":0},{"$f":"SUM(D68:D72)","v":0},{"$f":"SUM(E68:E72)","v":0}]
[null,"For meters:"]
["DRAB0901","Opening value",null,null,42281323.989097178]
["DRAB0902","Inflation addition",null,null,562341.60905499244]
["DRAB0903","Straight line depreciation",null,null,-3815836.8489281689]
["DRAB0905","Actual additions (recognised in RAB)",null,null,4657390.9476234149]
["DRAB0906","Disposals ",null,null,0]
["DRAB0907","Closing value",{"$f":"SUM(C75:C79)","v":0},{"$f":"SUM(D75:D79)","v":0},{"$f":"SUM(E75:E79)","v":43685219.696847416}]
[null,"For “other” asset items with long lives:"]
["DRAB1001","Opening value",70081348.871866658,159007245.21475086,454386.1258412227]
["DRAB1002","Inflation addition",932081.93999582645,2114796.3613561862,6043.335473688262]
["DRAB1003","Straight line depreciation",-2471760.6834813464,-6683183.8880914077,-29322.372151217322]
["DRAB1005","Actual additions (recognised in RAB)",809630.77401700651,9360211.2515590861,0]
["DRAB1006","Disposals ",0,0,0]
["DRAB1007","Closing value",{"$f":"SUM(C82:C86)","v":69351300.902398139},{"$f":"SUM(D82:D86)","v":163799068.93957472},{"$f":"SUM(E82:E86)","v":431107.08916369366}]
[null,"For “other” asset items with short lives:"]
["DRAB1101","Opening value",69596535,69596535,7806394]
["DRAB1102","Inflation addition",925634,925634,103825]
["DRAB1103","Straight line depreciation",-21335182,-21335182,-1980345]
["DRAB1105","Actual additions (recognised in RAB)",27511385,27511385,1698481]
["DRAB1106","Disposals ",-748894,-748894,-48775]
["DRAB1107","Closing value",{"$f":"SUM(C89:C93)","v":75949478},{"$f":"SUM(D89:D93)","v":75949478},{"$f":"SUM(E89:E93)","v":7579580}]
[]
[]
[]
[null,"3.3.3 - TOTAL DISAGGREGATED RAB ASSET VALUES"]
[null,null,"Network services","Standard control services","Alternative control services"]
[null,null,"VALUE ($0's)"]
[null,null,{"$f":"CRY","v":"2015-16"},{"$f":"CRY","v":"2015-16"},"2015-16"]
["DRAB1201","Overhead distribution assets (wires and poles)",668126224,671855223,"                                                                 -   "]
["DRAB1202","Underground distribution assets (cables, ducts etc)",372511259,374611239,"                                                                 -  "]
["DRAB1203","Distribution substations including transformers",237902814,239384119,"                                                                 -  "]
["DRAB1204","Overhead assets 33kV and above (wires and towers / poles etc)",12690173,12723081,"                                                                 -  "]
["DRAB1205","Underground assets 33kV and above (cables, ducts etc)",10171692,10183253,"                                                                 -  "]
["DRAB1206","Zone substations",52308716,52554009,"                                                                 -  "]
["DRAB1207","Easements "]
["DRAB1208","Meters","                                                                -  ","                                                             -  ",42983272]
["DRAB1209","Other assets with long lives (please specify)",69718637,160590730,442747]
["DRAB1210","Other assets with short lives (please specify)",72773007,72773007,7692987]
["DRAB13","Value of Capital Contributions or Contributed Assets (included in the above)",10722294,12252566,"                                                                 -  "]
[]
[]
[null,"3.3.4 - ASSET LIVES"]
[null,null,"Network services","Standard control services","Alternative control services"]
[null,null,"Service Life (Years)"]
[null,null,{"$f":"CRY","v":"2015-16"},{"$f":"CRY","v":"2015-16"},"2015-16"]
[null,"ESTIMATED SERVICE LIFE OF NEW ASSETS"]
["DRAB1401","Overhead network assets less than 33kV (wires and poles)",35,35]
["DRAB1402","Underground network assets less than 33kV (cables)",60,60]
["DRAB1403","Distribution substations including transformers",40,40]
["DRAB1404","Overhead network assets 33kV and above (wires and towers / poles etc) ",50,50]
["DRAB1405","Underground network assets 33kV and above(cables, ducts etc)",60,60]
["DRAB1406","Zone substations and transformers",40,40]
["DRAB1407","Meters","                                                                -  ","                                                             -  ",15]
["DRAB1408","“Other” assets with long lives",40,34,20]
["DRAB1409","“Other” assets with short lives",5,5,5]
[null,"ESTIMATED RESIDUAL SERVICE LIFE"]
["DRAB1501","Overhead network assets less than 33kV (wires and poles)",14,14]
["DRAB1502","Underground network assets less than 33kV (cables)",37,37]
["DRAB1503","Distribution substations including transformers",18,18]
["DRAB1504","Overhead network assets 33kV and above (wires and towers / poles etc) ",29,29]
["DRAB1505","Underground network assets 33kV and above (cables, ducts etc)",35,35]
["DRAB1506","Zone substations and transformers",13,13]
["DRAB1507","Meters","                                                                -  ","                                                             -  ",14]
["DRAB1508","“Other” assets with long lives",22,11,6]
["DRAB1509","“Other” assets with short lives",1,1,1]

{"sheet":"3.4 Operational data","index":8,"n_rows":139,"n_cols":4,"rows_kept":139,"cut":false,"hidden":false,"merged":[]}
[null,"REGULATORY REPORTING STATEMENT"]
[null,{"$f":"dms_TradingName","v":"TasNetworks (D)"}]
[null,{"$f":"CONCATENATE(\"Benchmarking RIN response \",CRY)","v":"Benchmarking RIN response 2015-16"}]
[null,"3.4 OPERATIONAL DATA"]
[]
[null,"There are THREE tables on this worksheet. Each table has been grouped for ease of navigation. See the Instructions sheet on how to group or ungroup tables. "]
[]
[null," 3.4.1 - ENERGY DELIVERY"]
[null,null,null,"Standard control services"]
[null,null,null,"VOLUME (0's)"]
[null,null,"Units",{"$f":"CRY","v":"2015-16"}]
["DOPED01","Total energy delivered","GWh",4243.3220809999993]
[]
[]
[null," 3.4.1.1 - Energy grouping - delivery by chargeable quantity"]
["DOPED0201","Energy Delivery where time of use is not a determinant","GWh",2761.900502]
["DOPED0202","Energy Delivery at On-peak times","GWh",631.7581449999999]
["DOPED0203","Energy Delivery at Shoulder times ","GWh",254.85231399999998]
["DOPED0204","Energy Delivery at Off-peak times","GWh",510.30532599999992]
["DOPED0205","Controlled load energy deliveries","GWh",54.712347999999999]
["DOPED0206","Energy Delivery to unmetered supplies","GWh",29.793446000000003]
[]
[null," 3.4.1.2 - Energy - received from TNSP and other DNSPs by time of receipt"]
["DOPED0301","Energy into DNSP network at On-peak times","GWh",2190.8262226979955]
["DOPED0302","Energy into DNSP network at Shoulder times ","GWh",772.99988826099923]
["DOPED0303","Energy into DNSP network at Off-peak times","GWh",1305.6055577080003]
["DOPED0304","Energy received from TNSP and other DNSPs not included in the above categories","GWh",0]
[]
[null," 3.4.1.3 - Energy - received into DNSP system from embedded generation by time of receipt"]
["DOPED0401","Energy into DNSP network at On-peak times from non-residential embedded generation","GWh",33.896946]
["DOPED0402","Energy into DNSP network at Shoulder times from non-residential embedded generation","GWh",14.829116000000001]
["DOPED0403","Energy into DNSP network at Off-peak times from non-residential embedded generation","GWh",28.443100999999999]
["DOPED0404","Energy received from embedded generation not included in above categories from non-residential embedded generation","GWh",3.7084670000000002]
["DOPED0405","Energy into DNSP network at On-peak times from residential embedded generation","GWh",1.4809999999999999E-3]
["DOPED0406","Energy into DNSP network at Shoulder times from residential embedded generation","GWh",6.69E-4]
["DOPED0407","Energy into DNSP network at Off-peak times from residential embedded generation","GWh",3.4999999999999997E-5]
["DOPED0408","Energy received from embedded generation not included in above categories from residential embedded generation","GWh",69.197162000000006]
[]
[null," 3.4.1.4 - Energy grouping  - customer type or class"]
["DOPED0501","Residential customers energy deliveries","GWh",1884.7575687439999]
["DOPED0502","Non residential customers not on demand tariffs energy deliveries","GWh",1037.176489256]
["DOPED0503","Non-residential low voltage demand tariff customers energy deliveries","GWh",527.77179899999999]
["DOPED0504","Non-residential high voltage demand tariff customers energy deliveries","GWh",763.82277799999997]
["DOPED0505","Other Customer Class Energy Deliveries","GWh",29.793446000000003]
[]
[]
[null," 3.4.2 - CUSTOMER NUMBERS"]
[null,null,null,"Standard control services"]
[null,null,null,"VOLUME (0's)"]
[null,null,null,{"$f":"CRY","v":"2015-16"}]
[null," 3.4.2.1 - Distribution customer numbers by customer type or class"]
["DOPCN0101","Residential customer numbers",null,239781]
["DOPCN0102","Non residential customers not on demand tariff customer numbers",null,40971]
["DOPCN0103","Low voltage demand tariff customer numbers",null,920]
["DOPCN0104","High voltage demand tariff customer numbers",null,123]
["DOPCN0105","Unmetered Customer Numbers",null,3530]
["DOPCN0106","Other Customer Numbers",null,0]
["DOPCN01","Total customer numbers",null,{"$f":"SUM(D52:D57)","v":285325}]
[]
[null," 3.4.2.2 - Distribution customer numbers by location on the network"]
["DOPCN0201","Customers on CBD network",null,0]
["DOPCN0202","Customers on Urban network",null,114482]
["DOPCN0203","Customers on Short rural network",null,134969]
["DOPCN0204","Customers on Long rural network",null,35874]
["DOPCN02","Total customer numbers",null,{"$f":"SUM(D61:D64)","v":285325}]
[]
[null," 3.4.2.3 - Distribution customer numbers by TasNetworks (D) feeder categories (TasNetworks (D) only)"]
[null,"Critical Infrastructure",null,1877]
[null,"High Density Commercial",null,4695]
[null,"Urban",null,191443]
[null,"High Density Rural",null,43286]
[null,"Low Density Rural",null,44024]
[null,"Total customer numbers",null,{"$f":"SUM(D68:D72)","v":285325}]
[]
[null," 3.4.2.4 - Unmetered Supply TasNetworks (D) only)"]
["DOPCN0301","Number of unmetered connections reported in customer numbers in the economic benchmarking RIN",null,3530]
["DOPCN0302","Unmetered connections not reported in customer numbers in the economic benchmarking RIN",null,0]
["DOPCN0303","Total unmetered connections",null,3530]
[]
[]
[null," 3.4.3 - SYSTEM DEMAND"]
[null,null,null,"Standard control services"]
[null,null,null,"VOLUME (0's)"]
[null,null,"Units",{"$f":"CRY","v":"2015-16"}]
[null," 3.4.3.1 - Annual system maximum demand characteristics at the zone substation level – MW measure"]
["DOPSD0101","Non-coincident Summated Raw System Annual Maximum Demand","MW ",232.2590020234947]
["DOPSD0102","Non–coincident Summated Weather Adjusted System Annual Maximum Demand 10% POE","MW ",250.43885593662196]
["DOPSD0103","Non–coincident Summated Weather Adjusted System Annual Maximum Demand 50% POE","MW ",242.21066519333823]
["DOPSD0104","Coincident Raw System Annual Maximum Demand","MW ",230.73800386713896]
["DOPSD0105","Coincident Weather Adjusted System Annual Maximum Demand 10% POE","MW ",248.91785778026622]
["DOPSD0106","Coincident Weather Adjusted System Annual Maximum Demand 50% POE","MW ",240.68966703698248]
[]
[null," 3.4.3.2 - Annual system maximum demand characteristics at the transmission connection point  – MW measure"]
["DOPSD0107","Non-coincident Summated Raw System Annual Maximum Demand","MW ",1075.0388159999998]
["DOPSD0108","Non–coincident Summated Weather Adjusted System Annual Maximum Demand 10% POE","MW ",1130.1728590133825]
["DOPSD0109","Non–coincident Summated Weather Adjusted System Annual Maximum Demand 50% POE","MW ",1105.2192249231246]
["DOPSD0110","Coincident Raw System Annual Maximum Demand","MW ",958.96784200000002]
["DOPSD0111","Coincident Weather Adjusted System Annual Maximum Demand 10% POE","MW ",1014.1018850133828]
["DOPSD0112","Coincident Weather Adjusted System Annual Maximum Demand 50% POE","MW ",989.14825092312481]
[]
[null," 3.4.3.3 - Annual system maximum demand characteristics at the zone substation level – MVA measure"]
["DOPSD0201","Non–coincident Summated Raw System Annual Maximum Demand"," MVA",234.79991035490053]
["DOPSD0202","Non–coincident Summated Weather Adjusted System Annual Maximum Demand 10% POE"," MVA",252.97976426802779]
["DOPSD0203","Non–coincident Summated Weather Adjusted System Annual Maximum Demand 50% POE"," MVA",244.75157352474406]
["DOPSD0204","Coincident Raw System Annual Maximum Demand"," MVA",233.43556535181236]
["DOPSD0205","Coincident Weather Adjusted System Annual Maximum Demand 10% POE"," MVA",251.61541926493962]
["DOPSD0206","Coincident Weather Adjusted System Annual Maximum Demand 50% POE"," MVA",243.38722852165591]
[]
[null," 3.4.3.4 - Annual system maximum demand characteristics at the transmission connection point – MVA measure"]
["DOPSD0207","Non–coincident Summated Raw System Annual Maximum Demand"," MVA",1092.3510892248817]
["DOPSD0208","Non–coincident Summated Weather Adjusted System Annual Maximum Demand 10% POE"," MVA",1147.4851322382644]
["DOPSD0209","Non–coincident Summated Weather Adjusted System Annual Maximum Demand 50% POE"," MVA",1122.5314981480064]
["DOPSD0210","Coincident Raw System Annual Maximum Demand"," MVA",967.174405658875]
["DOPSD0211","Coincident Weather Adjusted System Annual Maximum Demand 10% POE"," MVA",1022.3084486722578]
["DOPSD0212","Coincident Weather Adjusted System Annual Maximum Demand 50% POE"," MVA",997.35481458199979]
[]
[null," 3.4.3.5 - Power factor conversion between MVA and MW"]
["DOPSD0301","Average overall network power factor conversion between MVA and MW","Factor",0.9786092040893003]
["DOPSD0302","Average power factor conversion for  low voltage distribution lines","Factor",0.9786092040893003]
["DOPSD0303","Average power factor conversion for 3.3 kV lines","Factor",0]
["DOPSD0304","Average power factor conversion for 6.6 kV lines","Factor",0.83174343566742426]
["DOPSD0305","Average power factor conversion for 7.6 kV lines","Factor",0]
["DOPSD0306","Average power factor conversion for 11 kV lines","Factor",0.98176432476263453]
["DOPSD0307","Average power factor conversion for SWER lines","Factor",0.97762038142904351]
["DOPSD0308","Average power factor conversion for 22 kV lines","Factor",0.97762038142904351]
["DOPSD0309","Average power factor conversion for 33 kV lines","Factor",0.98629482580448147]
["DOPSD0310","Average power factor conversion for 44 kV lines","Factor",0.93272336933895916]
["DOPSD0311","Average power factor conversion for 66 kV lines","Factor",0]
["DOPSD0312","Average power factor conversion for 110 kV lines","Factor",0]
["DOPSD0313","Average power factor conversion for 132 kV lines","Factor",0]
["DOPSD0314","Average power factor conversion for 220 kV lines","Factor",0]
[]
[null," 3.4.3.6 - Demand supplied (for customers charged on this basis) – MW measure"]
["DOPSD0401","Summated Chargeable Contracted Maximum Demand","MW ",0]
["DOPSD0402","Summated Chargeable Measured Maximum Demand ","MW ",0]
[]
[null," 3.4.3.7 - Demand supplied (for customers charged on this basis) – MVA measure"]
["DOPSD0403","Summated Chargeable Contracted Maximum Demand"," MVA",193.83308702599999]
["DOPSD0404","Summated Chargeable Measured Maximum Demand "," MVA",151.31767923199982]

{"sheet":"3.5 Physical assets","index":9,"n_rows":98,"n_cols":3,"rows_kept":98,"cut":false,"hidden":false,"merged":[]}
[null,"REGULATORY REPORTING STATEMENT"]
[null,{"$f":"dms_TradingName","v":"TasNetworks (D)"}]
[null,{"$f":"CONCATENATE(\"Benchmarking RIN response \",CRY)","v":"Benchmarking RIN response 2015-16"}]
[null,"3.5 PHYSICAL ASSETS"]
[]
[null,"There are THREE tables on this worksheet. Each table has been grouped (and sub-grouped) for ease of navigation. See the Instructions sheet on how to group or ungroup tables. "]
[]
[null,"3.5.1 - NETWORK CAPACITIES"]
[null,null,"VOLUME in KM's\n(0's)"]
[null,null,{"$f":"CRY","v":"2015-16"}]
[null,"Circuit length (kilometers)"]
[null,"3.5.1.1 - Overhead network length of circuit at each voltage"]
["DPA0101","Overhead low voltage distribution",4944.93]
["DPA0102","Overhead 2.2 kV",0]
["DPA0103","Overhead 6.6kv",6.077]
["DPA0104","Overhead 7.6 kV",0]
["DPA0105","Overhead 11 kV",2957.08]
["DPA0106","Overhead SWER",482.86099999999999]
["DPA0107","Overhead 22 kV",11653.965]
["DPA0108","Overhead 33 kV",87.254999999999995]
["DPA0109","Overhead 44 kV",46.646000000000001]
["DPA0110","Overhead 66 kV",0]
["DPA0111","Overhead 110kV",0]
["DPA0112","Overhead 132 kV",0]
["DPA0113","Overhead 220kV",0]
["DPA0114","Other ",0]
["DPA01","Total overhead circuit km",{"$f":"SUM(C9:C26)","v":20178.814000000002}]
[null,"3.5.1.2 - Underground network circuit length at each voltage"]
["DPA0201","Underground low voltage distribution",1265.211]
["DPA0202","Underground 5 kV",0]
["DPA0203","Underground 6.6 Kv",0.105]
["DPA0204","Underground 7.6 kV",0]
["DPA0205","Underground 11 kV",630.596]
["DPA0206","Underground SWER",5.9189999999999996]
["DPA0207","Underground 22 kV",528.26199999999994]
["DPA0208","Underground 33 kV",72.176000000000002]
["DPA0209","Underground 66 kV",0]
["DPA0210","Underground 110 kV",0]
["DPA0211","Underground 132 kV",0]
["DPA0212","Other ",0]
["DPA02","Total underground circuit km",{"$f":"SUM(C29:C40)","v":2502.2689999999998}]
[null,null,"VOLUME in MVA\n(0's)"]
[null,"Circuit Capacity (MVA)",{"$f":"CRY","v":"2015-16"}]
[null,"3.5.1.3 - Estimated overhead network weighted average MVA capacity by voltage class"]
["DPA0301","Overhead low voltage distribution",0.13400000000000001]
["DPA0302","Overhead 6.6 kV",7.81]
["DPA0303","Overhead 7.6 kV",0]
["DPA0304","Overhead 11 kV",4.2610000000000001]
["DPA0305","Overhead SWER",0.64900000000000002]
["DPA0306","Overhead 22 kV",7.3170000000000002]
["DPA0307","Overhead 33 kV",23.163]
["DPA0308","Overhead 44 kV",29.704000000000001]
["DPA0309","Overhead 66 kV",0]
["DPA0310","Overhead 110 kV",0]
["DPA0311","Overhead 132 kV",0]
["DPA0312","Overhead 220 kV",0]
["DPA0313","Other ",0.13]
[null,"3.5.1.4 - Estimated underground network weighted average MVA capacity by voltage class"]
["DPA0401","Underground low voltage distribution",0.26100000000000001]
["DPA0402","Underground 5 kV",0]
["DPA0403","Underground 6.6 kV",3.2109999999999999]
["DPA0404","Underground 7.6 kV",0]
["DPA0405","Underground 11 kV",5.9]
["DPA0406","Underground SWER",0.432]
["DPA0407","Underground 12.7 kV",0]
["DPA0408","Underground 22 kV",11.39]
["DPA0409","Underground 33 kV",25.940999999999999]
["DPA0410","Underground 66 kV",0]
["DPA0411","Underground 110 kV",0]
["DPA0412","Underground 132 kV",0]
["DPA0413","Other",0.47599999999999998]
[]
[]
[]
[null,"3.5.2 - TRANSFORMER CAPACITIES"]
[null,null,"VOLUME in MVA\n(0's)"]
[null,null,{"$f":"CRY","v":"2015-16"}]
[null,"3.5.2.1 - Distribution transformer total installed capacity"]
["DPA0501","Distribution transformer capacity owned by utility",3627.578]
["DPA0502","Distribution transformer capacity owned by High Voltage Customers",192.58699999999999]
["DPA0503","Cold spare capacity included in DPA0501",33.19]
[null,"3.5.2.2 - Zone substation transformer capacity"]
["DPA0601","Total installed capacity for first step transformation where there are two steps to reach distribution voltage",0]
["DPA0602","Total installed capacity for second step transformation where there are two steps to reach distribution voltage",0]
["DPA0603","Total zone substation transformer capacity where there is only a single step transformation to reach distribution voltage",650]
["DPA0604","Total zone substation transformer  capacity ",675]
["DPA0605","Cold spare capacity of zone substation transformers included in DPA0604",25]
[null,"3.5.2.3 - Distribution - other transformer capacity"]
[null,"Distribution other - transformer capacity owned by utility ",505]
[]
[]
[]
[null,"3.5.3 - PUBLIC LIGHTING"]
[null,null,"VOLUME \n(0's)"]
[null,null,{"$f":"CRY","v":"2015-16"}]
["DPA0701","Public lighting luminaires",49787]
["DPA0702","Public lighting poles",1697]
["DPA0703","Public lighting columns ",10536]

{"sheet":"3.6 Quality of service","index":10,"n_rows":36,"n_cols":4,"rows_kept":36,"cut":false,"hidden":false,"merged":[]}
[null,"REGULATORY REPORTING STATEMENT"]
[null,{"$f":"dms_TradingName","v":"TasNetworks (D)"}]
[null,{"$f":"CONCATENATE(\"Benchmarking RIN response \",CRY)","v":"Benchmarking RIN response 2015-16"}]
[null,"3.6 QUALITY OF SERVICE DATA"]
[]
[]
[null,"3.6.1 - RELIABILITY"]
[null,null,null,"(0's)"]
[null,null,"Units",{"$f":"CRY","v":"2015-16"}]
[null,"INCLUSIVE OF MEDs"]
["DQS0101","Whole of network unplanned SAIDI","minutes/customer",274.726]
["DQS0102","Whole of network unplanned SAIDI excluding excluded outages","minutes/customer",267.63499999999999]
["DQS0103","Whole of network unplanned SAIFI","interruptions/customer",1.94]
["DQS0104","Whole of network unplanned SAIFI excluding excluded outages","interruptions/customer",1.883]
[null,"EXCLUSIVE OF MEDs"]
["DQS0105","Whole of network unplanned SAIDI","minutes/customer",157.416]
["DQS0106","Whole of network unplanned SAIDI excluding excluded outages","minutes/customer",150.40600000000001]
["DQS0107","Whole of network unplanned SAIFI","interruptions/customer",1.6160000000000001]
["DQS0108","Whole of network unplanned SAIFI excluding excluded outages","interruptions/customer",1.5589999999999999]
[]
[null,"3.6.2 - ENERGY NOT SUPPLIED"]
[null,null,null,"(0's)"]
[null,null,"Units",{"$f":"CRY","v":"2015-16"}]
["DQS0201","Energy Not Supplied (planned)","GWh",0.45900000000000002]
["DQS0202","Energy Not Supplied (unplanned)","GWh",1.167]
["DQS02","Total",null,{"$f":"SUM(D24:D25)","v":1.6260000000000001}]
[]
[null,"3.6.3 - SYSTEM LOSSES"]
[null,null,null,"(0's)"]
[null,null,"Unit",{"$f":"CRY","v":"2015-16"}]
["DQS03","System losses","%",3.9828000000000002E-2]
[]
[null,"3.6.4 - CAPACITY UTILISATION"]
[null,null,null,"(0's)"]
[null,null,"Unit",{"$f":"CRY","v":"2015-16"}]
["DQS04","Overall utilisation","%",0.34814810000000002]

{"sheet":"3.7 Operating environment","index":11,"n_rows":35,"n_cols":4,"rows_kept":35,"cut":false,"hidden":false,"merged":[]}
[null,"REGULATORY REPORTING STATEMENT"]
[null,{"$f":"dms_TradingName","v":"TasNetworks (D)"}]
[null,{"$f":"CONCATENATE(\"Benchmarking RIN response \",CRY)","v":"Benchmarking RIN response 2015-16"}]
[null,"3.7 OPERATING ENVIRONMENT FACTORS"]
[]
[]
[null,"3.7.1 - DENSITY FACTORS"]
[null,null,null,"(0's)"]
[null,null,"Units",{"$f":"CRY","v":"2015-16"}]
["DOEF0101","Customer density","Customer / km",13.966118121567515]
["DOEF0102","Energy density","MWh/customer",14.870761412424429]
["DOEF0103","Demand density","kVA / customer",0.82362218522737229]
[]
[null,"3.7.2 - TERRAIN FACTORS"]
[null,null,null,"(0's)"]
[null,null,null,{"$f":"CRY","v":"2015-16"}]
["DOEF0201","Rural proportion","%",0.92400000000000004]
["DOEF0202","Urban and CBD vegetation maintenance spans","Number of spans",5968]
["DOEF0203","Rural vegetation maintenance spans","Number of spans",21061]
["DOEF0204","Total vegetation maintenance spans","Number of spans",27028]
["DOEF0205","Total number of spans","Number of spans",227339]
["DOEF0206","Average urban and CBD vegetation maintenance span cycle","Years",1]
["DOEF0207","Average rural vegetation maintenance span cycle","Years",1]
["DOEF0208","Average number of trees per urban and CBD vegetation maintenance span","Trees",18.7]
["DOEF0209","Average number of trees per rural vegetation maintenance span","Trees",38.200000000000003]
["DOEF0210","Average number of defects per urban and CBD vegetation maintenance span","Defects",3.3]
["DOEF0211","Average number of defects per rural vegetation maintenance span","Defects",5]
["DOEF0212","Tropical proportion","Spans","                                                     -  "]
["DOEF0213","Standard vehicle access","km",778.6]
["DOEF0214","Bushfire risk","Spans",8870]
[]
[null,"3.7.3 - SERVICE AREA FACTORS"]
[null,null,null,"(0's)"]
[null,null,null,{"$f":"CRY","v":"2015-16"}]
["DOEF0301","Route Line length","km",20429.770436645002]

{"sheet":"NSP amendments","index":12,"n_rows":2,"n_cols":3,"rows_kept":2,"cut":false,"hidden":false,"merged":[[0,1,0,2]]}
[null,{"$f":"CONCATENATE(dms_TradingName,\" data amendments\")","v":"TasNetworks (D) data amendments"}]
[null,"Amended Table","Comments"]